Workbook

Sheet fiú (hidden)
B1: 101 m | C1: 100m | D1: 801 m | E1: 800 m | F1: Pont | G1: Távol | H1: Súlyl. | I1: Kisl. | J1: Pont
B2: 6.21 | C2: 6.22 | D2: 00:01:14.700 | E2: 00:01:14.880 | F2: 300 | G2: =N2/100 -> 1.8 | H2: 3 | I2: 4 | J2: 0 | N2: 180
B3: 6.2251 | C3: 6.2396 | D3: 00:01:14.885 | E3: 00:01:15.142 | F3: 299 | G3: 1.82 | H3: 3.06 | I3: 4.36 | J3: 1 | N3: 182
B4: 6.2447 | C4: 6.2592 | D4: 00:01:15.147 | E4: 00:01:15.405 | F4: 298 | G4: 1.85 | H4: 3.12 | I4: 4.73 | J4: 2 | N4: 185
B5: 6.2643 | C5: 6.2788 | D5: 00:01:15.409 | E5: 00:01:15.667 | F5: 297 | G5: 1.87 | H5: 3.17 | I5: 5.09 | J5: 3 | N5: 187
B6: 6.2839 | C6: 6.2984 | D6: 00:01:15.672 | E6: 00:01:15.930 | F6: 296 | G6: 1.89 | H6: 3.23 | I6: 5.46 | J6: 4 | N6: 189
B7: 6.3035 | C7: 6.318 | D7: 00:01:15.934 | E7: 00:01:16.192 | F7: 295 | G7: 1.92 | H7: 3.29 | I7: 5.82 | J7: 5 | N7: 192
B8: 6.3231 | C8: 6.3376 | D8: 00:01:16.197 | E8: 00:01:16.454 | F8: 294 | G8: 1.94 | H8: 3.35 | I8: 6.19 | J8: 6 | N8: 194
B9: 6.3427 | C9: 6.3572 | D9: 00:01:16.459 | E9: 00:01:16.717 | F9: 293 | G9: 1.96 | H9: 3.4 | I9: 6.55 | J9: 7 | N9: 196
B10: 6.3623 | C10: 6.3768 | D10: 00:01:16.721 | E10: 00:01:16.979 | F10: 292 | G10: 1.99 | H10: 3.46 | I10: 6.92 | J10: 8 | N10: 199
B11: 6.3819 | C11: 6.3964 | D11: 00:01:16.984 | E11: 00:01:17.242 | F11: 291 | G11: 2.01 | H11: 3.52 | I11: 7.28 | J11: 9 | N11: 201
B12: 6.4015 | C12: 6.416 | D12: 00:01:17.246 | E12: 00:01:17.504 | F12: 290 | G12: 2.03 | H12: 3.58 | I12: 7.65 | J12: 10 | N12: 203
B13: 6.4211 | C13: 6.4356 | D13: 00:01:17.509 | E13: 00:01:17.766 | F13: 289 | G13: 2.06 | H13: 3.63 | I13: 8.01 | J13: 11 | N13: 206
B14: 6.4407 | C14: 6.4552 | D14: 00:01:17.771 | E14: 00:01:18.029 | F14: 288 | G14: 2.08 | H14: 3.69 | I14: 8.38 | J14: 12 | N14: 208
B15: 6.4603 | C15: 6.4748 | D15: 00:01:18.033 | E15: 00:01:18.291 | F15: 287 | G15: 2.1 | H15: 3.75 | I15: 8.74 | J15: 13 | N15: 210
B16: 6.4799 | C16: 6.4944 | D16: 00:01:18.296 | E16: 00:01:18.554 | F16: 286 | G16: 2.13 | H16: 3.81 | I16: 9.11 | J16: 14 | N16: 213
B17: 6.4995 | C17: 6.514 | D17: 00:01:18.558 | E17: 00:01:18.816 | F17: 285 | G17: 2.15 | H17: 3.86 | I17: 9.47 | J17: 15 | N17: 215
B18: 6.5191 | C18: 6.5336 | D18: 00:01:18.821 | E18: 00:01:19.078 | F18: 284 | G18: 2.17 | H18: 3.92 | I18: 9.84 | J18: 16 | N18: 217
B19: 6.5387 | C19: 6.5532 | D19: 00:01:19.083 | E19: 00:01:19.341 | F19: 283 | G19: 2.2 | H19: 3.98 | I19: 10.2 | J19: 17 | N19: 220
B20: 6.5583 | C20: 6.5728 | D20: 00:01:19.345 | E20: 00:01:19.603 | F20: 282 | G20: 2.22 | H20: 4.04 | I20: 10.57 | J20: 18 | N20: 222
B21: 6.5779 | C21: 6.5924 | D21: 00:01:19.608 | E21: 00:01:19.866 | F21: 281 | G21: 2.24 | H21: 4.09 | I21: 10.93 | J21: 19 | N21: 224
B22: 6.5975 | C22: 6.612 | D22: 00:01:19.872 | E22: 00:01:20.128 | F22: 280 | G22: 2.27 | H22: 4.15 | I22: 11.3 | J22: 20 | N22: 227
B23: 6.6171 | C23: 6.6316 | D23: 00:01:20.133 | E23: 00:01:20.390 | F23: 279 | G23: 2.29 | H23: 4.21 | I23: 11.66 | J23: 21 | N23: 229
B24: 6.6367 | C24: 6.6512 | D24: 00:01:20.395 | E24: 00:01:20.653 | F24: 278 | G24: 2.31 | H24: 4.27 | I24: 12.03 | J24: 22 | N24: 231
B25: 6.6563 | C25: 6.6708 | D25: 00:01:20.657 | E25: 00:01:20.915 | F25: 277 | G25: 2.34 | H25: 4.32 | I25: 12.39 | J25: 23 | N25: 234
B26: 6.6759 | C26: 6.6904 | D26: 00:01:20.921 | E26: 00:01:21.178 | F26: 276 | G26: 2.36 | H26: 4.38 | I26: 12.76 | J26: 24 | N26: 236
B27: 6.6955 | C27: 6.71 | D27: 00:01:21.182 | E27: 00:01:21.440 | F27: 275 | G27: 2.39 | H27: 4.44 | I27: 13.12 | J27: 25 | N27: 239
B28: 6.7151 | C28: 6.7296 | D28: 00:01:21.444 | E28: 00:01:21.702 | F28: 274 | G28: 2.41 | H28: 4.5 | I28: 13.48 | J28: 26 | N28: 241
B29: 6.7347 | C29: 6.7492 | D29: 00:01:21.707 | E29: 00:01:21.965 | F29: 273 | G29: 2.43 | H29: 4.56 | I29: 13.85 | J29: 27 | N29: 243
B30: 6.7543 | C30: 6.7688 | D30: 00:01:21.969 | E30: 00:01:22.227 | F30: 272 | G30: 2.46 | H30: 4.61 | I30: 14.21 | J30: 28 | N30: 246
B31: 6.7739 | C31: 6.7884 | D31: 00:01:22.232 | E31: 00:01:22.490 | F31: 271 | G31: 2.48 | H31: 4.67 | I31: 14.58 | J31: 29 | N31: 248
B32: 6.7935 | C32: 6.808 | D32: 00:01:22.494 | E32: 00:01:22.752 | F32: 270 | G32: 2.5 | H32: 4.73 | I32: 14.94 | J32: 30 | N32: 250
B33: 6.8131 | C33: 6.8276 | D33: 00:01:22.756 | E33: 00:01:23.014 | F33: 269 | G33: 2.53 | H33: 4.79 | I33: 15.31 | J33: 31 | N33: 253
B34: 6.8327 | C34: 6.8472 | D34: 00:01:23.019 | E34: 00:01:23.277 | F34: 268 | G34: 2.55 | H34: 4.84 | I34: 15.67 | J34: 32 | N34: 255
B35: 6.8523 | C35: 6.8668 | D35: 00:01:23.281 | E35: 00:01:23.539 | F35: 267 | G35: 2.57 | H35: 4.9 | I35: 16.04 | J35: 33 | N35: 257
B36: 6.8719 | C36: 6.8864 | D36: 00:01:23.544 | E36: 00:01:23.802 | F36: 266 | G36: 2.6 | H36: 4.96 | I36: 16.4 | J36: 34 | N36: 260
B37: 6.8915 | C37: 6.906 | D37: 00:01:23.806 | E37: 00:01:24.064 | F37: 265 | G37: 2.62 | H37: 5.02 | I37: 16.77 | J37: 35 | N37: 262
B38: 6.9111 | C38: 6.9256 | D38: 00:01:24.069 | E38: 00:01:24.326 | F38: 264 | G38: 2.64 | H38: 5.07 | I38: 17.13 | J38: 36 | N38: 264
B39: 6.9307 | C39: 6.9452 | D39: 00:01:24.331 | E39: 00:01:24.589 | F39: 263 | G39: 2.67 | H39: 5.13 | I39: 17.5 | J39: 37 | N39: 267
B40: 6.9503 | C40: 6.9648 | D40: 00:01:24.593 | E40: 00:01:24.851 | F40: 262 | G40: 2.69 | H40: 5.19 | I40: 17.86 | J40: 38 | N40: 269
B41: 6.9699 | C41: 6.9844 | D41: 00:01:24.856 | E41: 00:01:25.114 | F41: 261 | G41: 2.71 | H41: 5.25 | I41: 18.23 | J41: 39 | N41: 271
B42: 6.9895 | C42: 7.004 | D42: 00:01:25.118 | E42: 00:01:25.376 | F42: 260 | G42: 2.74 | H42: 5.3 | I42: 18.59 | J42: 40 | N42: 274
B43: 7.0091 | C43: 7.0236 | D43: 00:01:25.381 | E43: 00:01:25.638 | F43: 259 | G43: 2.76 | H43: 5.36 | I43: 18.96 | J43: 41 | N43: 276
B44: 7.0287 | C44: 7.0432 | D44: 00:01:25.643 | E44: 00:01:25.901 | F44: 258 | G44: 2.78 | H44: 5.42 | I44: 19.32 | J44: 42 | N44: 278
B45: 7.0483 | C45: 7.0628 | D45: 00:01:25.905 | E45: 00:01:26.163 | F45: 257 | G45: 2.81 | H45: 5.48 | I45: 19.69 | J45: 43 | N45: 281
B46: 7.0679 | C46: 7.0824 | D46: 00:01:26.168 | E46: 00:01:26.426 | F46: 256 | G46: 2.83 | H46: 5.53 | I46: 20.05 | J46: 44 | N46: 283
B47: 7.0875 | C47: 7.102 | D47: 00:01:26.432 | E47: 00:01:26.688 | F47: 255 | G47: 2.85 | H47: 5.59 | I47: 20.42 | J47: 45 | N47: 285
B48: 7.1071 | C48: 7.1216 | D48: 00:01:26.693 | E48: 00:01:26.950 | F48: 254 | G48: 2.88 | H48: 5.65 | I48: 20.78 | J48: 46 | N48: 288
B49: 7.1267 | C49: 7.1412 | D49: 00:01:26.955 | E49: 00:01:27.213 | F49: 253 | G49: 2.9 | H49: 5.71 | I49: 21.15 | J49: 47 | N49: 290
B50: 7.1463 | C50: 7.1608 | D50: 00:01:27.217 | E50: 00:01:27.475 | F50: 252 | G50: 2.92 | H50: 5.76 | I50: 21.51 | J50: 48 | N50: 292
B51: 7.1659 | C51: 7.1804 | D51: 00:01:27.481 | E51: 00:01:27.738 | F51: 251 | G51: 2.95 | H51: 5.82 | I51: 21.88 | J51: 49 | N51: 295
B52: 7.1855 | C52: 7.2 | D52: 00:01:27.742 | E52: 00:01:28 | F52: 250 | G52: 2.97 | H52: 5.88 | I52: 22.24 | J52: 50 | N52: 297
B53: 7.2051 | C53: 7.22 | D53: 00:01:28.005 | E53: 00:01:28.262 | F53: 249 | G53: 2.99 | H53: 5.93 | I53: 22.57 | J53: 51 | N53: 299
B54: 7.2251 | C54: 7.24 | D54: 00:01:28.267 | E54: 00:01:28.525 | F54: 248 | G54: 3.01 | H54: 5.99 | I54: 22.91 | J54: 52 | N54: 301
B55: 7.2451 | C55: 7.26 | D55: 00:01:28.529 | E55: 00:01:28.787 | F55: 247 | G55: 3.03 | H55: 6.04 | I55: 23.24 | J55: 53 | N55: 303
B56: 7.2651 | C56: 7.28 | D56: 00:01:28.792 | E56: 00:01:29.050 | F56: 246 | G56: 3.06 | H56: 6.09 | I56: 23.58 | J56: 54 | N56: 306
B57: 7.2851 | C57: 7.3 | D57: 00:01:29.054 | E57: 00:01:29.312 | F57: 245 | G57: 3.08 | H57: 6.14 | I57: 23.91 | J57: 55 | N57: 308
B58: 7.3051 | C58: 7.32 | D58: 00:01:29.316 | E58: 00:01:29.574 | F58: 244 | G58: 3.1 | H58: 6.2 | I58: 24.25 | J58: 56 | N58: 310
B59: 7.3251 | C59: 7.33 | D59: 00:01:29.579 | E59: 00:01:29.837 | F59: 243 | G59: 3.12 | H59: 6.25 | I59: 24.58 | J59: 57 | N59: 312
B60: 7.3351 | C60: 7.35 | D60: 00:01:29.841 | E60: 00:01:30.099 | F60: 242 | G60: 3.14 | H60: 6.3 | I60: 24.92 | J60: 58 | N60: 314
B61: 7.3551 | C61: 7.37 | D61: 00:01:30.104 | E61: 00:01:30.362 | F61: 241 | G61: 3.16 | H61: 6.36 | I61: 25.25 | J61: 59 | N61: 316
B62: 7.3751 | C62: 7.39 | D62: 00:01:30.366 | E62: 00:01:30.624 | F62: 240 | G62: 3.19 | H62: 6.41 | I62: 25.58 | J62: 60 | N62: 319
B63: 7.3951 | C63: 7.41 | D63: 00:01:30.628 | E63: 00:01:30.886 | F63: 239 | G63: 3.21 | H63: 6.46 | I63: 25.92 | J63: 61 | N63: 321
B64: 7.4151 | C64: 7.43 | D64: 00:01:30.891 | E64: 00:01:31.149 | F64: 238 | G64: 3.23 | H64: 6.51 | I64: 26.25 | J64: 62 | N64: 323
B65: 7.4351 | C65: 7.45 | D65: 00:01:31.153 | E65: 00:01:31.411 | F65: 237 | G65: 3.25 | H65: 6.57 | I65: 26.59 | J65: 63 | N65: 325
B66: 7.4551 | C66: 7.47 | D66: 00:01:31.416 | E66: 00:01:31.674 | F66: 236 | G66: =N66/100 -> 3.27 | H66: 6.62 | I66: 26.92 | J66: 64 | N66: 327
B67: 7.4751 | C67: 7.49 | D67: 00:01:31.678 | E67: 00:01:31.936 | F67: 235 | G67: 3.29 | H67: 6.67 | I67: 27.26 | J67: 65 | N67: 329
B68: 7.4951 | C68: 7.51 | D68: 00:01:31.941 | E68: 00:01:32.198 | F68: 234 | G68: 3.32 | H68: 6.72 | I68: 27.59 | J68: 66 | N68: 332
B69: 7.5151 | C69: 7.53 | D69: 00:01:32.203 | E69: 00:01:32.461 | F69: 233 | G69: 3.34 | H69: 6.78 | I69: 27.92 | J69: 67 | N69: 334
B70: 7.5351 | C70: 7.55 | D70: 00:01:32.465 | E70: 00:01:32.723 | F70: 232 | G70: 3.36 | H70: 6.83 | I70: 28.26 | J70: 68 | N70: 336
B71: 7.5551 | C71: 7.56 | D71: 00:01:32.728 | E71: 00:01:32.986 | F71: 231 | G71: 3.38 | H71: 6.88 | I71: 28.59 | J71: 69 | N71: 338
B72: 7.5651 | C72: 7.58 | D72: 00:01:32.992 | E72: 00:01:33.248 | F72: 230 | G72: 3.4 | H72: 6.94 | I72: 28.93 | J72: 70 | N72: 340
B73: 7.5851 | C73: 7.6 | D73: 00:01:33.253 | E73: 00:01:33.510 | F73: 229 | G73: 3.42 | H73: 6.99 | I73: 29.26 | J73: 71 | N73: 342
B74: 7.6051 | C74: 7.62 | D74: 00:01:33.515 | E74: 00:01:33.773 | F74: 228 | G74: 3.45 | H74: 7.04 | I74: 29.6 | J74: 72 | N74: 345
B75: 7.6251 | C75: 7.64 | D75: 00:01:33.777 | E75: 00:01:34.035 | F75: 227 | G75: 3.47 | H75: 7.09 | I75: 29.93 | J75: 73 | N75: 347
B76: 7.6451 | C76: 7.66 | D76: 00:01:34.041 | E76: 00:01:34.298 | F76: 226 | G76: 3.49 | H76: 7.15 | I76: 30.27 | J76: 74 | N76: 349
B77: 7.6651 | C77: 7.68 | D77: 00:01:34.302 | E77: 00:01:34.560 | F77: 225 | G77: 3.51 | H77: 7.2 | I77: 30.6 | J77: 75 | N77: 351
B78: 7.6851 | C78: 7.7 | D78: 00:01:34.565 | E78: 00:01:34.822 | F78: 224 | G78: 3.53 | H78: 7.25 | I78: 30.93 | J78: 76 | N78: 353
B79: 7.7051 | C79: 7.72 | D79: 00:01:34.827 | E79: 00:01:35.085 | F79: 223 | G79: 3.55 | H79: 7.31 | I79: 31.27 | J79: 77 | N79: 355
B80: 7.7251 | C80: 7.74 | D80: 00:01:35.089 | E80: 00:01:35.347 | F80: 222 | G80: 3.57 | H80: 7.36 | I80: 31.6 | J80: 78 | N80: 357
B81: 7.7451 | C81: 7.76 | D81: 00:01:35.352 | E81: 00:01:35.610 | F81: 221 | G81: 3.6 | H81: 7.41 | I81: 31.94 | J81: 79 | N81: 360
B82: 7.7651 | C82: 7.78 | D82: 00:01:35.614 | E82: 00:01:35.872 | F82: 220 | G82: 3.62 | H82: 7.46 | I82: 32.27 | J82: 80 | N82: 362
B83: 7.7851 | C83: 7.8 | D83: 00:01:35.877 | E83: 00:01:36.134 | F83: 219 | G83: 3.64 | H83: 7.52 | I83: 32.61 | J83: 81 | N83: 364
B84: 7.8051 | C84: 7.81 | D84: 00:01:36.139 | E84: 00:01:36.397 | F84: 218 | G84: 3.66 | H84: 7.57 | I84: 32.94 | J84: 82 | N84: 366
B85: 7.8151 | C85: 7.83 | D85: 00:01:36.401 | E85: 00:01:36.659 | F85: 217 | G85: 3.68 | H85: 7.62 | I85: 33.28 | J85: 83 | N85: 368
B86: 7.8351 | C86: 7.85 | D86: 00:01:36.664 | E86: 00:01:36.922 | F86: 216 | G86: 3.7 | H86: 7.68 | I86: 33.61 | J86: 84 | N86: 370
B87: 7.8551 | C87: 7.87 | D87: 00:01:36.926 | E87: 00:01:37.184 | F87: 215 | G87: 3.73 | H87: 7.73 | I87: 33.94 | J87: 85 | N87: 373
B88: 7.8751 | C88: 7.89 | D88: 00:01:37.188 | E88: 00:01:37.446 | F88: 214 | G88: 3.75 | H88: 7.78 | I88: 34.28 | J88: 86 | N88: 375
B89: 7.8951 | C89: 7.91 | D89: 00:01:37.451 | E89: 00:01:37.709 | F89: 213 | G89: 3.77 | H89: 7.83 | I89: 34.61 | J89: 87 | N89: 377
B90: 7.9151 | C90: 7.93 | D90: 00:01:37.713 | E90: 00:01:37.971 | F90: 212 | G90: 3.79 | H90: 7.89 | I90: 34.95 | J90: 88 | N90: 379
B91: 7.9351 | C91: 7.95 | D91: 00:01:37.976 | E91: 00:01:38.234 | F91: 211 | G91: 3.81 | H91: 7.94 | I91: 35.28 | J91: 89 | N91: 381
B92: 7.9551 | C92: 7.97 | D92: 00:01:38.238 | E92: 00:01:38.496 | F92: 210 | G92: 3.83 | H92: 7.99 | I92: 35.62 | J92: 90 | N92: 383
B93: 7.9751 | C93: 7.99 | D93: 00:01:38.502 | E93: 00:01:38.758 | F93: 209 | G93: 3.86 | H93: 8.04 | I93: 35.95 | J93: 91 | N93: 386
B94: 7.9951 | C94: 8.01 | D94: 00:01:38.763 | E94: 00:01:39.021 | F94: 208 | G94: 3.88 | H94: 8.1 | I94: 36.28 | J94: 92 | N94: 388
B95: 8.0151 | C95: 8.03 | D95: 00:01:39.025 | E95: 00:01:39.283 | F95: 207 | G95: 3.9 | H95: 8.15 | I95: 36.62 | J95: 93 | N95: 390
B96: 8.0351 | C96: 8.04 | D96: 00:01:39.288 | E96: 00:01:39.546 | F96: 206 | G96: 3.92 | H96: 8.2 | I96: 36.95 | J96: 94 | N96: 392
B97: 8.0451 | C97: 8.06 | D97: 00:01:39.552 | E97: 00:01:39.808 | F97: 205 | G97: 3.94 | H97: 8.26 | I97: 37.29 | J97: 95 | N97: 394
B98: 8.0651 | C98: 8.08 | D98: 00:01:39.813 | E98: 00:01:40.070 | F98: 204 | G98: 3.96 | H98: 8.31 | I98: 37.62 | J98: 96 | N98: 396
B99: 8.0851 | C99: 8.1 | D99: 00:01:40.075 | E99: 00:01:40.333 | F99: 203 | G99: 3.99 | H99: 8.36 | I99: 37.96 | J99: 97 | N99: 399
B100: 8.1051 | C100: 8.12 | D100: 00:01:40.337 | E100: 00:01:40.595 | F100: 202 | G100: 4.01 | H100: 8.41 | I100: 38.29 | J100: 98 | N100: 401
B101: 8.1251 | C101: 8.14 | D101: 00:01:40.601 | E101: 00:01:40.858 | F101: 201 | G101: 4.03 | H101: 8.47 | I101: 38.63 | J101: 99 | N101: 403
B102: 8.1451 | C102: 8.16 | D102: 00:01:40.862 | E102: 00:01:41.120 | F102: 200 | G102: 4.05 | H102: 8.52 | I102: 38.96 | J102: 100 | N102: 405
B103: 8.1651 | C103: 8.18 | D103: 00:01:41.125 | E103: 00:01:41.415 | F103: 199 | G103: 4.07 | H103: 8.57 | I103: 39.26 | J103: 101 | N103: 407
B104: 8.1851 | C104: 8.2 | D104: 00:01:41.420 | E104: 00:01:41.710 | F104: 198 | G104: 4.09 | H104: 8.62 | I104: 39.57 | J104: 102 | N104: 409
B105: 8.2051 | C105: 8.22 | D105: 00:01:41.715 | E105: 00:01:42.006 | F105: 197 | G105: 4.11 | H105: 8.66 | I105: 39.87 | J105: 103 | N105: 411
B106: 8.2251 | C106: 8.25 | D106: 00:01:42.012 | E106: 00:01:42.301 | F106: 196 | G106: 4.13 | H106: 8.71 | I106: 40.18 | J106: 104 | N106: 413
B107: 8.2551 | C107: 8.27 | D107: 00:01:42.305 | E107: 00:01:42.596 | F107: 195 | G107: 4.15 | H107: 8.76 | I107: 40.48 | J107: 105 | N107: 415
B108: 8.2751 | C108: 8.29 | D108: 00:01:42.601 | E108: 00:01:42.891 | F108: 194 | G108: 4.17 | H108: 8.81 | I108: 40.78 | J108: 106 | N108: 417
B109: 8.2951 | C109: 8.31 | D109: 00:01:42.896 | E109: 00:01:43.186 | F109: 193 | G109: 4.19 | H109: 8.86 | I109: 41.09 | J109: 107 | N109: 419
B110: 8.3151 | C110: 8.33 | D110: 00:01:43.191 | E110: 00:01:43.482 | F110: 192 | G110: 4.21 | H110: 8.9 | I110: 41.39 | J110: 108 | N110: 421
B111: 8.3351 | C111: 8.35 | D111: 00:01:43.486 | E111: 00:01:43.777 | F111: 191 | G111: 4.23 | H111: 8.95 | I111: 41.7 | J111: 109 | N111: 423
B112: 8.3551 | C112: 8.38 | D112: 00:01:43.781 | E112: 00:01:44.072 | F112: 190 | G112: 4.25 | H112: 9 | I112: 42 | J112: 110 | N112: 425
B113: 8.3851 | C113: 8.4 | D113: 00:01:44.077 | E113: 00:01:44.367 | F113: 189 | G113: 4.27 | H113: 9.05 | I113: 42.3 | J113: 111 | N113: 427
B114: 8.4051 | C114: 8.42 | D114: 00:01:44.372 | E114: 00:01:44.662 | F114: 188 | G114: 4.29 | H114: 9.1 | I114: 42.61 | J114: 112 | N114: 429
B115: 8.4251 | C115: 8.44 | D115: 00:01:44.667 | E115: 00:01:44.958 | F115: 187 | G115: 4.3 | H115: 9.14 | I115: 42.91 | J115: 113 | N115: 430
B116: 8.4451 | C116: 8.46 | D116: 00:01:44.962 | E116: 00:01:45.253 | F116: 186 | G116: 4.32 | H116: 9.19 | I116: 43.22 | J116: 114 | N116: 432
B117: 8.4651 | C117: 8.48 | D117: 00:01:45.257 | E117: 00:01:45.548 | F117: 185 | G117: 4.34 | H117: 9.24 | I117: 43.52 | J117: 115 | N117: 434
B118: 8.4851 | C118: 8.51 | D118: 00:01:45.552 | E118: 00:01:45.843 | F118: 184 | G118: 4.36 | H118: 9.29 | I118: 43.82 | J118: 116 | N118: 436
B119: 8.5151 | C119: 8.53 | D119: 00:01:45.848 | E119: 00:01:46.138 | F119: 183 | G119: 4.38 | H119: 9.34 | I119: 44.13 | J119: 117 | N119: 438
B120: 8.5351 | C120: 8.55 | D120: 00:01:46.143 | E120: 00:01:46.434 | F120: 182 | G120: 4.4 | H120: 9.38 | I120: 44.43 | J120: 118 | N120: 440
B121: 8.5551 | C121: 8.57 | D121: 00:01:46.438 | E121: 00:01:46.729 | F121: 181 | G121: 4.42 | H121: 9.43 | I121: 44.74 | J121: 119 | N121: 442
B122: 8.5751 | C122: 8.59 | D122: 00:01:46.733 | E122: 00:01:47.024 | F122: 180 | G122: 4.44 | H122: 9.48 | I122: 45.04 | J122: 120 | N122: 444
B123: 8.5951 | C123: 8.61 | D123: 00:01:47.028 | E123: 00:01:47.319 | F123: 179 | G123: 4.46 | H123: 9.53 | I123: 45.34 | J123: 121 | N123: 446
B124: 8.6151 | C124: 8.64 | D124: 00:01:47.324 | E124: 00:01:47.614 | F124: 178 | G124: 4.48 | H124: 9.58 | I124: 45.65 | J124: 122 | N124: 448
B125: 8.6451 | C125: 8.66 | D125: 00:01:47.619 | E125: 00:01:47.910 | F125: 177 | G125: 4.5 | H125: 9.62 | I125: 45.95 | J125: 123 | N125: 450
B126: 8.6651 | C126: 8.68 | D126: 00:01:47.914 | E126: 00:01:48.205 | F126: 176 | G126: 4.52 | H126: 9.67 | I126: 46.26 | J126: 124 | N126: 452
B127: 8.6851 | C127: 8.7 | D127: 00:01:48.209 | E127: 00:01:48.500 | F127: 175 | G127: 4.54 | H127: 9.72 | I127: 46.56 | J127: 125 | N127: 454
B128: 8.7051 | C128: 8.72 | D128: 00:01:48.505 | E128: 00:01:48.795 | F128: 174 | G128: 4.56 | H128: 9.77 | I128: 46.86 | J128: 126 | N128: 456
B129: 8.7251 | C129: 8.74 | D129: 00:01:48.801 | E129: 00:01:49.090 | F129: 173 | G129: 4.58 | H129: 9.82 | I129: 47.17 | J129: 127 | N129: 458
B130: 8.7451 | C130: 8.76 | D130: 00:01:49.095 | E130: 00:01:49.386 | F130: 172 | G130: =N130/100 -> 4.6 | H130: 9.86 | I130: 47.47 | J130: 128 | N130: 460
B131: 8.7651 | C131: 8.79 | D131: 00:01:49.390 | E131: 00:01:49.681 | F131: 171 | G131: 4.62 | H131: 9.91 | I131: 47.78 | J131: 129 | N131: 462
B132: 8.7951 | C132: 8.81 | D132: 00:01:49.685 | E132: 00:01:49.976 | F132: 170 | G132: 4.64 | H132: 9.96 | I132: 48.08 | J132: 130 | N132: 464
B133: 8.8151 | C133: 8.83 | D133: 00:01:49.981 | E133: 00:01:50.271 | F133: 169 | G133: 4.66 | H133: 10.01 | I133: 48.38 | J133: 131 | N133: 466
B134: 8.8351 | C134: 8.85 | D134: 00:01:50.276 | E134: 00:01:50.566 | F134: 168 | G134: 4.68 | H134: 10.06 | I134: 48.69 | J134: 132 | N134: 468
B135: 8.8551 | C135: 8.87 | D135: 00:01:50.571 | E135: 00:01:50.862 | F135: 167 | G135: 4.7 | H135: 10.1 | I135: 48.99 | J135: 133 | N135: 470
B136: 8.8751 | C136: 8.89 | D136: 00:01:50.866 | E136: 00:01:51.157 | F136: 166 | G136: 4.72 | H136: 10.15 | I136: 49.3 | J136: 134 | N136: 472
B137: 8.8951 | C137: 8.92 | D137: 00:01:51.161 | E137: 00:01:51.452 | F137: 165 | G137: 4.74 | H137: 10.2 | I137: 49.6 | J137: 135 | N137: 474
B138: 8.9251 | C138: 8.94 | D138: 00:01:51.457 | E138: 00:01:51.747 | F138: 164 | G138: 4.76 | H138: 10.25 | I138: 49.9 | J138: 136 | N138: 476
B139: 8.9451 | C139: 8.96 | D139: 00:01:51.752 | E139: 00:01:52.042 | F139: 163 | G139: 4.78 | H139: 10.3 | I139: 50.21 | J139: 137 | N139: 478
B140: 8.9651 | C140: 8.98 | D140: 00:01:52.047 | E140: 00:01:52.338 | F140: 162 | G140: 4.79 | H140: 10.34 | I140: 50.51 | J140: 138 | N140: 479
B141: 8.9851 | C141: 9 | D141: 00:01:52.342 | E141: 00:01:52.633 | F141: 161 | G141: 4.81 | H141: 10.39 | I141: 50.82 | J141: 139 | N141: 481
B142: 9.0051 | C142: 9.02 | D142: 00:01:52.637 | E142: 00:01:52.928 | F142: 160 | G142: 4.83 | H142: 10.44 | I142: 51.12 | J142: 140 | N142: 483
B143: 9.0251 | C143: 9.05 | D143: 00:01:52.933 | E143: 00:01:53.223 | F143: 159 | G143: 4.85 | H143: 10.49 | I143: 51.42 | J143: 141 | N143: 485
B144: 9.0551 | C144: 9.07 | D144: 00:01:53.228 | E144: 00:01:53.518 | F144: 158 | G144: 4.87 | H144: 10.54 | I144: 51.73 | J144: 142 | N144: 487
B145: 9.0751 | C145: 9.09 | D145: 00:01:53.523 | E145: 00:01:53.814 | F145: 157 | G145: 4.89 | H145: 10.58 | I145: 52.03 | J145: 143 | N145: 489
B146: 9.0951 | C146: 9.11 | D146: 00:01:53.818 | E146: 00:01:54.109 | F146: 156 | G146: 4.91 | H146: 10.63 | I146: 52.34 | J146: 144 | N146: 491
B147: 9.1151 | C147: 9.13 | D147: 00:01:54.113 | E147: 00:01:54.404 | F147: 155 | G147: 4.93 | H147: 10.68 | I147: 52.64 | J147: 145 | N147: 493
B148: 9.1351 | C148: 9.15 | D148: 00:01:54.408 | E148: 00:01:54.699 | F148: 154 | G148: 4.95 | H148: 10.73 | I148: 52.94 | J148: 146 | N148: 495
B149: 9.1551 | C149: 9.18 | D149: 00:01:54.704 | E149: 00:01:54.994 | F149: 153 | G149: 4.97 | H149: 10.78 | I149: 53.25 | J149: 147 | N149: 497
B150: 9.1851 | C150: 9.2 | D150: 00:01:54.999 | E150: 00:01:55.290 | F150: 152 | G150: 4.99 | H150: 10.82 | I150: 53.55 | J150: 148 | N150: 499
B151: 9.2051 | C151: 9.22 | D151: 00:01:55.294 | E151: 00:01:55.585 | F151: 151 | G151: 5.01 | H151: 10.87 | I151: 53.86 | J151: 149 | N151: 501
B152: 9.2251 | C152: 9.24 | D152: 00:01:55.589 | E152: 00:01:55.880 | F152: 150 | G152: 5.03 | H152: 10.92 | I152: 54.16 | J152: 150 | N152: 503
B153: 9.2451 | C153: 9.26 | D153: 00:01:55.884 | E153: 00:01:56.208 | F153: 149 | G153: 5.05 | H153: 10.96 | I153: 54.43 | J153: 151 | N153: 505
B154: 9.2651 | C154: 9.29 | D154: 00:01:56.212 | E154: 00:01:56.536 | F154: 148 | G154: 5.07 | H154: 11.01 | I154: 54.71 | J154: 152 | N154: 507
B155: 9.2951 | C155: 9.31 | D155: 00:01:56.541 | E155: 00:01:56.864 | F155: 147 | G155: 5.08 | H155: 11.05 | I155: 54.98 | J155: 153 | N155: 508
B156: 9.3151 | C156: 9.34 | D156: 00:01:56.869 | E156: 00:01:57.192 | F156: 146 | G156: 5.1 | H156: 11.09 | I156: 55.25 | J156: 154 | N156: 510
B157: 9.3451 | C157: 9.36 | D157: 00:01:57.197 | E157: 00:01:57.520 | F157: 145 | G157: 5.12 | H157: 11.14 | I157: 55.53 | J157: 155 | N157: 512
B158: 9.3651 | C158: 9.38 | D158: 00:01:57.525 | E158: 00:01:57.848 | F158: 144 | G158: 5.14 | H158: 11.18 | I158: 55.8 | J158: 156 | N158: 514
B159: 9.3851 | C159: 9.41 | D159: 00:01:57.852 | E159: 00:01:58.176 | F159: 143 | G159: 5.15 | H159: 11.22 | I159: 56.08 | J159: 157 | N159: 515
B160: 9.4151 | C160: 9.43 | D160: 00:01:58.182 | E160: 00:01:58.504 | F160: 142 | G160: 5.17 | H160: 11.27 | I160: 56.35 | J160: 158 | N160: 517
B161: 9.4351 | C161: 9.46 | D161: 00:01:58.509 | E161: 00:01:58.832 | F161: 141 | G161: 5.19 | H161: 11.31 | I161: 56.62 | J161: 159 | N161: 519
B162: 9.4651 | C162: 9.48 | D162: 00:01:58.837 | E162: 00:01:59.160 | F162: 140 | G162: 5.21 | H162: 11.35 | I162: 56.9 | J162: 160 | N162: 521
B163: 9.4851 | C163: 9.5 | D163: 00:01:59.165 | E163: 00:01:59.488 | F163: 139 | G163: 5.22 | H163: 11.4 | I163: 57.17 | J163: 161 | N163: 522
B164: 9.5051 | C164: 9.53 | D164: 00:01:59.493 | E164: 00:01:59.816 | F164: 138 | G164: 5.24 | H164: 11.44 | I164: 57.44 | J164: 162 | N164: 524
B165: 9.5351 | C165: 9.55 | D165: 00:01:59.822 | E165: 00:02:00.144 | F165: 137 | G165: 5.26 | H165: 11.48 | I165: 57.72 | J165: 163 | N165: 526
B166: 9.5551 | C166: 9.58 | D166: 00:02:00.148 | E166: 00:02:00.472 | F166: 136 | G166: 5.28 | H166: 11.52 | I166: 57.99 | J166: 164 | N166: 528
B167: 9.5851 | C167: 9.6 | D167: 00:02:00.477 | E167: 00:02:00.800 | F167: 135 | G167: 5.29 | H167: 11.57 | I167: 58.26 | J167: 165 | N167: 529
B168: 9.6051 | C168: 9.62 | D168: 00:02:00.805 | E168: 00:02:01.128 | F168: 134 | G168: 5.31 | H168: 11.61 | I168: 58.54 | J168: 166 | N168: 531
B169: 9.6251 | C169: 9.65 | D169: 00:02:01.133 | E169: 00:02:01.456 | F169: 133 | G169: 5.33 | H169: 11.65 | I169: 58.81 | J169: 167 | N169: 533
B170: 9.6551 | C170: 9.67 | D170: 00:02:01.461 | E170: 00:02:01.784 | F170: 132 | G170: 5.35 | H170: 11.7 | I170: 59.08 | J170: 168 | N170: 535
B171: 9.6751 | C171: 9.7 | D171: 00:02:01.788 | E171: 00:02:02.112 | F171: 131 | G171: 5.36 | H171: 11.74 | I171: 59.36 | J171: 169 | N171: 536
B172: 9.7051 | C172: 9.72 | D172: 00:02:02.116 | E172: 00:02:02.440 | F172: 130 | G172: 5.38 | H172: 11.78 | I172: 59.63 | J172: 170 | N172: 538
B173: 9.7251 | C173: 9.74 | D173: 00:02:02.445 | E173: 00:02:02.768 | F173: 129 | G173: 5.4 | H173: 11.83 | I173: 59.91 | J173: 171 | N173: 540
B174: 9.7451 | C174: 9.77 | D174: 00:02:02.773 | E174: 00:02:03.096 | F174: 128 | G174: 5.42 | H174: 11.87 | I174: 60.18 | J174: 172 | N174: 542
B175: 9.7751 | C175: 9.79 | D175: 00:02:03.101 | E175: 00:02:03.424 | F175: 127 | G175: 5.43 | H175: 11.91 | I175: 60.45 | J175: 173 | N175: 543
B176: 9.7951 | C176: 9.82 | D176: 00:02:03.429 | E176: 00:02:03.752 | F176: 126 | G176: 5.45 | H176: 11.96 | I176: 60.73 | J176: 174 | N176: 545
B177: 9.8251 | C177: 9.84 | D177: 00:02:03.756 | E177: 00:02:04.080 | F177: 125 | G177: 5.47 | H177: 12 | I177: 61 | J177: 175 | N177: 547
B178: 9.8451 | C178: 9.86 | D178: 00:02:04.084 | E178: 00:02:04.408 | F178: 124 | G178: 5.49 | H178: 12.04 | I178: 61.27 | J178: 176 | N178: 549
B179: 9.8651 | C179: 9.89 | D179: 00:02:04.413 | E179: 00:02:04.736 | F179: 123 | G179: 5.51 | H179: 12.09 | I179: 61.55 | J179: 177 | N179: 551
B180: 9.8951 | C180: 9.91 | D180: 00:02:04.741 | E180: 00:02:05.064 | F180: 122 | G180: 5.52 | H180: 12.13 | I180: 61.82 | J180: 178 | N180: 552
B181: 9.9151 | C181: 9.94 | D181: 00:02:05.069 | E181: 00:02:05.392 | F181: 121 | G181: 5.54 | H181: 12.17 | I181: 62.09 | J181: 179 | N181: 554
B182: 9.9451 | C182: 9.96 | D182: 00:02:05.397 | E182: 00:02:05.720 | F182: 120 | G182: 5.56 | H182: 12.22 | I182: 62.37 | J182: 180 | N182: 556
B183: 9.9651 | C183: 9.98 | D183: 00:02:05.724 | E183: 00:02:06.048 | F183: 119 | G183: 5.58 | H183: 12.26 | I183: 62.64 | J183: 181 | N183: 558
B184: 9.9851 | C184: 10.01 | D184: 00:02:06.052 | E184: 00:02:06.376 | F184: 118 | G184: 5.59 | H184: 12.3 | I184: 62.92 | J184: 182 | N184: 559
B185: 10.0151 | C185: 10.03 | D185: 00:02:06.381 | E185: 00:02:06.704 | F185: 117 | G185: 5.61 | H185: 12.35 | I185: 63.19 | J185: 183 | N185: 561
B186: 10.0351 | C186: 10.06 | D186: 00:02:06.709 | E186: 00:02:07.032 | F186: 116 | G186: 5.63 | H186: 12.39 | I186: 63.46 | J186: 184 | N186: 563
B187: 10.0651 | C187: 10.08 | D187: 00:02:07.037 | E187: 00:02:07.360 | F187: 115 | G187: 5.65 | H187: 12.43 | I187: 63.74 | J187: 185 | N187: 565
B188: 10.0851 | C188: 10.1 | D188: 00:02:07.365 | E188: 00:02:07.688 | F188: 114 | G188: 5.66 | H188: 12.48 | I188: 64.01 | J188: 186 | N188: 566
B189: 10.1051 | C189: 10.13 | D189: 00:02:07.692 | E189: 00:02:08.016 | F189: 113 | G189: 5.68 | H189: 12.52 | I189: 64.28 | J189: 187 | N189: 568
B190: 10.1351 | C190: 10.15 | D190: 00:02:08.020 | E190: 00:02:08.344 | F190: 112 | G190: 5.7 | H190: 12.56 | I190: 64.56 | J190: 188 | N190: 570
B191: 10.1551 | C191: 10.18 | D191: 00:02:08.349 | E191: 00:02:08.672 | F191: 111 | G191: 5.72 | H191: 12.6 | I191: 64.83 | J191: 189 | N191: 572
B192: 10.1851 | C192: 10.2 | D192: 00:02:08.677 | E192: 00:02:09 | F192: 110 | G192: 5.73 | H192: 12.65 | I192: 65.1 | J192: 190 | N192: 573
B193: 10.2051 | C193: 10.22 | D193: 00:02:09.005 | E193: 00:02:09.328 | F193: 109 | G193: 5.75 | H193: 12.69 | I193: 65.38 | J193: 191 | N193: 575
B194: 10.2251 | C194: 10.25 | D194: 00:02:09.333 | E194: 00:02:09.656 | F194: 108 | G194: =N194/100 -> 5.77 | H194: 12.73 | I194: 65.65 | J194: 192 | N194: 577
B195: 10.2551 | C195: 10.27 | D195: 00:02:09.662 | E195: 00:02:09.984 | F195: 107 | G195: 5.79 | H195: 12.78 | I195: 65.92 | J195: 193 | N195: 579
B196: 10.2751 | C196: 10.3 | D196: 00:02:09.988 | E196: 00:02:10.312 | F196: 106 | G196: 5.8 | H196: 12.82 | I196: 66.2 | J196: 194 | N196: 580
B197: 10.3051 | C197: 10.32 | D197: 00:02:10.317 | E197: 00:02:10.640 | F197: 105 | G197: 5.82 | H197: 12.86 | I197: 66.47 | J197: 195 | N197: 582
B198: 10.3251 | C198: 10.34 | D198: 00:02:10.645 | E198: 00:02:10.968 | F198: 104 | G198: 5.84 | H198: 12.91 | I198: 66.75 | J198: 196 | N198: 584
B199: 10.3451 | C199: 10.37 | D199: 00:02:10.973 | E199: 00:02:11.296 | F199: 103 | G199: 5.86 | H199: 12.95 | I199: 67.02 | J199: 197 | N199: 586
B200: 10.3751 | C200: 10.39 | D200: 00:02:11.301 | E200: 00:02:11.624 | F200: 102 | G200: 5.87 | H200: 12.99 | I200: 67.29 | J200: 198 | N200: 587
... 102 more rows

Sheet Be
A1: III. korcsoport FIÚ Összetett verseny
A3: Név | B3: Sz.év | C3: 60 m | E3: Távolugrás | G3: Klabdahajítás | I3: 600 m | K3: Összpont | L3: helyezés | M3: Iskola
A4: Horváth Ábel | B4: 2010 | C4: 9 | D4: =IF(C4<6.19,0,VLOOKUP(C4,rfut,5,TRUE)) -> 161 | E4: 4.36 | F4: =IF(E4<1.79,0,VLOOKUP(E4,távol,4,TRUE)) -> 116 | G4: 43.4 | H4: =IF(G4<4,0,VLOOKUP(G4,kisl,2,TRUE)) -> 114 | I4: 00:01:56.100 | J4: =IF(I4<fiú!$D$2,0,VLOOKUP(I4,hfut,3,TRUE)) -> 149 | K4: =SUM(D4,F4,H4,J4) -> 540 | L4: =RANK(K4,Egyéni!$L$3:$L$156,0) -> 7 | M4: Dombóvári Illyés Gy. Gimnázium
A5: Démuth Béla Kevin | B5: 2010 | C5: 8.4 | D5: 189 | E5: 4.43 | F5: 119 | G5: 58.37 | H5: 165 | I5: 00:01:48.800 | J5: =IF(I5<fiú!$D$2,0,VLOOKUP(I5,hfut,3,TRUE)) -> 174 | K5: =SUM(D5,F5,H5,J5) -> 647 | L5: =RANK(K5,Egyéni!$L$3:$L$156,0) -> 1 | M5: Vak Bottyán Ált. Isk. Pálfa
D6: 0 | F6: 0 | H6: 0 | J6: =IF(I6<fiú!$D$2,0,VLOOKUP(I6,hfut,3,TRUE)) -> 0 | K6: 0 | L6: =RANK(K6,Egyéni!$L$3:$L$156,0) -> 43
D7: 0 | F7: 0 | H7: 0 | J7: =IF(I7<fiú!$D$2,0,VLOOKUP(I7,hfut,3,TRUE)) -> 0 | K7: 0 | L7: =RANK(K7,Egyéni!$L$3:$L$156,0) -> 43
D8: 0 | F8: 0 | H8: 0 | J8: =IF(I8<fiú!$D$2,0,VLOOKUP(I8,hfut,3,TRUE)) -> 0 | K8: 0 | L8: =RANK(K8,Egyéni!$L$3:$L$156,0) -> 43
D9: 0 | F9: 0 | H9: 0 | J9: =IF(I9<fiú!$D$2,0,VLOOKUP(I9,hfut,3,TRUE)) -> 0 | K9: 0 | L9: =RANK(K9,Egyéni!$L$3:$L$156,0) -> 43
D10: 0 | F10: 0 | H10: 0 | J10: =IF(I10<fiú!$D$2,0,VLOOKUP(I10,hfut,3,TRUE)) -> 0 | K10: 0 | L10: =RANK(K10,Egyéni!$L$3:$L$156,0) -> 43
D11: 0 | F11: 0 | H11: 0 | J11: =IF(I11<fiú!$D$2,0,VLOOKUP(I11,hfut,3,TRUE)) -> 0 | K11: 0 | L11: =RANK(K11,Egyéni!$L$3:$L$156,0) -> 43
D12: 0 | F12: 0 | H12: 0 | J12: =IF(I12<fiú!$D$2,0,VLOOKUP(I12,hfut,3,TRUE)) -> 0 | K12: 0 | L12: =RANK(K12,Egyéni!$L$3:$L$156,0) -> 43
D13: 0 | F13: 0 | H13: 0 | J13: =IF(I13<fiú!$D$2,0,VLOOKUP(I13,hfut,3,TRUE)) -> 0 | K13: 0 | L13: =RANK(K13,Egyéni!$L$3:$L$156,0) -> 43
D14: 0 | F14: 0 | H14: 0 | J14: =IF(I14<fiú!$D$2,0,VLOOKUP(I14,hfut,3,TRUE)) -> 0 | K14: 0 | L14: =RANK(K14,Egyéni!$L$3:$L$156,0) -> 43
D15: 0 | F15: 0 | H15: 0 | J15: =IF(I15<fiú!$D$2,0,VLOOKUP(I15,hfut,3,TRUE)) -> 0 | K15: 0 | L15: =RANK(K15,Egyéni!$L$3:$L$156,0) -> 43
D16: 0 | F16: 0 | H16: 0 | J16: =IF(I16<fiú!$D$2,0,VLOOKUP(I16,hfut,3,TRUE)) -> 0 | K16: 0 | L16: =RANK(K16,Egyéni!$L$3:$L$156,0) -> 43
D17: 0 | F17: 0 | H17: 0 | J17: =IF(I17<fiú!$D$2,0,VLOOKUP(I17,hfut,3,TRUE)) -> 0 | K17: 0 | L17: =RANK(K17,Egyéni!$L$3:$L$156,0) -> 43
D18: 0 | F18: 0 | H18: 0 | J18: =IF(I18<fiú!$D$2,0,VLOOKUP(I18,hfut,3,TRUE)) -> 0 | K18: 0 | L18: =RANK(K18,Egyéni!$L$3:$L$156,0) -> 43
D19: 0 | F19: 0 | H19: 0 | J19: =IF(I19<fiú!$D$2,0,VLOOKUP(I19,hfut,3,TRUE)) -> 0 | K19: 0 | L19: =RANK(K19,Egyéni!$L$3:$L$156,0) -> 43
D20: 0 | F20: 0 | H20: 0 | J20: =IF(I20<fiú!$D$2,0,VLOOKUP(I20,hfut,3,TRUE)) -> 0 | K20: 0 | L20: =RANK(K20,Egyéni!$L$3:$L$156,0) -> 43
D21: 0 | F21: 0 | H21: 0 | J21: =IF(I21<fiú!$D$2,0,VLOOKUP(I21,hfut,3,TRUE)) -> 0 | K21: 0 | L21: =RANK(K21,Egyéni!$L$3:$L$156,0) -> 43
D22: 0 | F22: 0 | H22: 0 | J22: =IF(I22<fiú!$D$2,0,VLOOKUP(I22,hfut,3,TRUE)) -> 0 | K22: 0 | L22: =RANK(K22,Egyéni!$L$3:$L$156,0) -> 43
D23: 0 | F23: 0 | H23: 0 | J23: =IF(I23<fiú!$D$2,0,VLOOKUP(I23,hfut,3,TRUE)) -> 0 | K23: 0 | L23: =RANK(K23,Egyéni!$L$3:$L$156,0) -> 43
D24: 0 | F24: 0 | H24: 0 | J24: =IF(I24<fiú!$D$2,0,VLOOKUP(I24,hfut,3,TRUE)) -> 0 | K24: 0 | L24: =RANK(K24,Egyéni!$L$3:$L$156,0) -> 43
D25: 0 | F25: 0 | H25: 0 | J25: =IF(I25<fiú!$D$2,0,VLOOKUP(I25,hfut,3,TRUE)) -> 0 | K25: 0 | L25: =RANK(K25,Egyéni!$L$3:$L$156,0) -> 43
A27: Bonyhádi Általános Iskola | M27: =RANK(M29,Csapat!$C$3:P30,0) -> 1
A28: Név | B28: Sz.év | C28: 60 m | E28: Távolugrás | G28: Klabdahajítás | I28: 600 m | K28: Összpont | L28: Helyezés
A29: Farkas Botond | B29: 2011 | D29: =IF(C29<6.19,0,VLOOKUP(C29,rfut,5,TRUE)) -> 0 | F29: =IF(E29<1.79,0,VLOOKUP(E29,távol,4,TRUE)) -> 0 | H29: =IF(G29<4,0,VLOOKUP(G29,kisl,2,TRUE)) -> 0 | J29: =IF(I29<fiú!$D$2,0,VLOOKUP(I29,hfut,3,TRUE)) -> 0 | K29: =SUM(D29,F29,H29,J29) -> 0 | L29: =RANK(K29,Egyéni!$L$3:$L$156,0) -> 43 | M29: =SUM(K29:K34)-MIN(K29:K34) -> 2750
A30: János Olivér | B30: 2011 | C30: 9 | D30: 161 | E30: 3.96 | F30: 96 | G30: 32.59 | H30: 80 | I30: 00:01:55.400 | J30: =IF(I30<fiú!$D$2,0,VLOOKUP(I30,hfut,3,TRUE)) -> 151 | K30: 488 | L30: =RANK(K30,Egyéni!$L$3:$L$156,0) -> 14
A31: Magyar Péter József | B31: 2010 | C31: 8.5 | D31: 184 | E31: 4.69 | F31: 132 | G31: 38.96 | H31: 100 | I31: 00:01:55.900 | J31: =IF(I31<fiú!$D$2,0,VLOOKUP(I31,hfut,3,TRUE)) -> 149 | K31: 565 | L31: =RANK(K31,Egyéni!$L$3:$L$156,0) -> 5
A32: Markóczi Donát | B32: 2010 | C32: 8.2 | D32: 198 | E32: 4.42 | F32: 119 | G32: 47.72 | H32: 128 | I32: 00:01:52.800 | J32: =IF(I32<fiú!$D$2,0,VLOOKUP(I32,hfut,3,TRUE)) -> 160 | K32: 605 | L32: =RANK(K32,Egyéni!$L$3:$L$156,0) -> 3
A33: Szőts Dávid | B33: 2010 | C33: 8.3 | D33: 193 | E33: 5.19 | F33: 159 | G33: 42.08 | H33: 110 | I33: 00:01:49 | J33: =IF(I33<fiú!$D$2,0,VLOOKUP(I33,hfut,3,TRUE)) -> 173 | K33: 635 | L33: =RANK(K33,Egyéni!$L$3:$L$156,0) -> 2
A34: Tusa Zétény | B34: 2011 | C34: 9.2 | D34: 152 | E34: 3.62 | F34: 80 | G34: 32.74 | H34: 81 | I34: 00:01:57.700 | J34: =IF(I34<fiú!$D$2,0,VLOOKUP(I34,hfut,3,TRUE)) -> 144 | K34: 457 | L34: =RANK(K34,Egyéni!$L$3:$L$156,0) -> 20
A37: Szekszárdi Garay János Általános Iskola | M37: =RANK(M39,Csapat!$C$3:P40,0) -> 2
A38: Név | B38: Sz.év | C38: 60 m | E38: Távolugrás | G38: Klabdahajítás | I38: 600 m | K38: Összpont | L38: Helyezés
A39: Gyenes Kristóf | B39: 2010 | C39: 8.4 | D39: =IF(C39<6.19,0,VLOOKUP(C39,rfut,5,TRUE)) -> 189 | E39: 4.25 | F39: =IF(E39<1.79,0,VLOOKUP(E39,távol,4,TRUE)) -> 110 | G39: 40.36 | H39: =IF(G39<4,0,VLOOKUP(G39,kisl,2,TRUE)) -> 104 | I39: 00:02:01.300 | J39: =IF(I39<fiú!$D$2,0,VLOOKUP(I39,hfut,3,TRUE)) -> 133 | K39: =SUM(D39,F39,H39,J39) -> 536 | L39: =RANK(K39,Egyéni!$L$3:$L$156,0) -> 8 | M39: =SUM(K39:K44)-MIN(K39:K44) -> 2460
A40: Gyenes Szilárd | B40: 2010 | C40: 8.8 | D40: 170 | E40: 4.2 | F40: 107 | G40: 35.34 | H40: 89 | I40: 00:02:00.400 | J40: =IF(I40<fiú!$D$2,0,VLOOKUP(I40,hfut,3,TRUE)) -> 136 | K40: 502 | L40: =RANK(K40,Egyéni!$L$3:$L$156,0) -> 12
A41: Nyisztor Gergely | B41: 2010 | C41: 9.4 | D41: 143 | E41: 4.44 | F41: 120 | G41: 48.53 | H41: 131 | I41: 00:01:56.200 | J41: =IF(I41<fiú!$D$2,0,VLOOKUP(I41,hfut,3,TRUE)) -> 149 | K41: 543 | L41: =RANK(K41,Egyéni!$L$3:$L$156,0) -> 6
A42: Frei Bertalan | B42: 2011 | C42: 9.6 | D42: 135 | E42: 3.87 | F42: 91 | G42: 39.93 | H42: 103 | I42: 00:02:09.900 | J42: =IF(I42<fiú!$D$2,0,VLOOKUP(I42,hfut,3,TRUE)) -> 107 | K42: 436 | L42: =RANK(K42,Egyéni!$L$3:$L$156,0) -> 31
A43: Rend Hunor | B43: 2011 | C43: 9.8 | D43: 126 | E43: 3.85 | F43: 90 | G43: 37.51 | H43: 95 | I43: 00:02:01.500 | J43: =IF(I43<fiú!$D$2,0,VLOOKUP(I43,hfut,3,TRUE)) -> 132 | K43: 443 | L43: =RANK(K43,Egyéni!$L$3:$L$156,0) -> 25
A44: Reizer Erik Tamás | B44: 2010 | C44: 9.3 | D44: 147 | E44: 3.97 | F44: 96 | G44: 32.59 | H44: 80 | I44: 00:02:13.600 | J44: =IF(I44<fiú!$D$2,0,VLOOKUP(I44,hfut,3,TRUE)) -> 96 | K44: 419 | L44: =RANK(K44,Egyéni!$L$3:$L$156,0) -> 35
A47: PTE Gyakorló Ált. Isk. Szekszárd | M47: =RANK(M49,Csapat!$C$3:P50,0) -> 6
A48: Név | B48: Sz.év | C48: 60 m | E48: Távolugrás | G48: Klabdahajítás | I48: 600 m | K48: Összpont | L48: Helyezés
A49: Joósz Ákos | B49: 2011 | C49: 9.6 | D49: =IF(C49<6.19,0,VLOOKUP(C49,rfut,5,TRUE)) -> 135 | E49: 3.97 | F49: =IF(E49<1.79,0,VLOOKUP(E49,távol,4,TRUE)) -> 96 | G49: 44.82 | H49: =IF(G49<4,0,VLOOKUP(G49,kisl,2,TRUE)) -> 119 | I49: 00:02:14.600 | J49: =IF(I49<fiú!$D$2,0,VLOOKUP(I49,hfut,3,TRUE)) -> 94 | K49: =SUM(D49,F49,H49,J49) -> 444 | L49: =RANK(K49,Egyéni!$L$3:$L$156,0) -> 24 | M49: =SUM(K49:K54)-MIN(K49:K54) -> 2227
A50: Vörös Arlen Botond | B50: 2010 | C50: 9.4 | D50: 143 | E50: 4.25 | F50: 110 | G50: 42.84 | H50: 112 | I50: 00:02:04.600 | J50: =IF(I50<fiú!$D$2,0,VLOOKUP(I50,hfut,3,TRUE)) -> 123 | K50: 488 | L50: =RANK(K50,Egyéni!$L$3:$L$156,0) -> 14
A51: Vajda Barnabás | B51: 2010 | C51: 9.7 | D51: 131 | E51: 3.66 | F51: 82 | G51: 36.12 | H51: 91 | I51: 00:02:01.200 | J51: =IF(I51<fiú!$D$2,0,VLOOKUP(I51,hfut,3,TRUE)) -> 133 | K51: 437 | L51: =RANK(K51,Egyéni!$L$3:$L$156,0) -> 30
A52: Végh Hunor | B52: 2011 | C52: 9.7 | D52: 131 | E52: 3.63 | F52: 80 | G52: 33.78 | H52: 84 | I52: 00:02:05.700 | J52: =IF(I52<fiú!$D$2,0,VLOOKUP(I52,hfut,3,TRUE)) -> 120 | K52: 415 | L52: =RANK(K52,Egyéni!$L$3:$L$156,0) -> 36
A53: Bakó Mihály | B53: 2011 | C53: 9.3 | D53: 147 | E53: 4.05 | F53: 100 | G53: 36.93 | H53: 93 | I53: 00:02:11.200 | J53: =IF(I53<fiú!$D$2,0,VLOOKUP(I53,hfut,3,TRUE)) -> 103 | K53: 443 | L53: =RANK(K53,Egyéni!$L$3:$L$156,0) -> 25
A54: Fülöp György József | B54: 2010 | D54: 0 | F54: 0 | H54: 0 | J54: =IF(I54<fiú!$D$2,0,VLOOKUP(I54,hfut,3,TRUE)) -> 0 | K54: 0 | L54: =RANK(K54,Egyéni!$L$3:$L$156,0) -> 43
A57: Szt. Orsolya Bencés Ált. Isk. Dombóvár | M57: =RANK(M59,Csapat!$C$3:P60,0) -> 3
A58: Név | B58: Sz.év | C58: 60 m | E58: Távolugrás | G58: Klabdahajítás | I58: 600 m | K58: Összpont | L58: Helyezés
A59: Kutyik-Szabó Károly | B59: 2010 | C59: 9.3 | D59: =IF(C59<6.19,0,VLOOKUP(C59,rfut,5,TRUE)) -> 147 | E59: 4.2 | F59: =IF(E59<1.79,0,VLOOKUP(E59,távol,4,TRUE)) -> 107 | G59: 37.02 | H59: =IF(G59<4,0,VLOOKUP(G59,kisl,2,TRUE)) -> 94 | I59: 00:01:55.800 | J59: =IF(I59<fiú!$D$2,0,VLOOKUP(I59,hfut,3,TRUE)) -> 150 | K59: =SUM(D59,F59,H59,J59) -> 498 | L59: =RANK(K59,Egyéni!$L$3:$L$156,0) -> 13 | M59: =SUM(K59:K64)-MIN(K59:K64) -> 2447
A60: Lehőcz Zétény | B60: 2010 | C60: 9.3 | D60: 147 | E60: 3.86 | F60: 91 | G60: 33.81 | H60: 84 | I60: 00:02:04.600 | J60: =IF(I60<fiú!$D$2,0,VLOOKUP(I60,hfut,3,TRUE)) -> 123 | K60: 445 | L60: =RANK(K60,Egyéni!$L$3:$L$156,0) -> 23
A61: Pataki Gergő | B61: 2010 | C61: 9.2 | D61: 152 | E61: 4.2 | F61: 107 | G61: 42.02 | H61: 110 | I61: 00:01:58.300 | J61: =IF(I61<fiú!$D$2,0,VLOOKUP(I61,hfut,3,TRUE)) -> 142 | K61: 511 | L61: =RANK(K61,Egyéni!$L$3:$L$156,0) -> 10
A62: Roósz Balázs | B62: 2011 | C62: 8.9 | D62: 165 | E62: 4.07 | F62: 101 | G62: 37.88 | H62: 96 | I62: 00:01:58.600 | J62: =IF(I62<fiú!$D$2,0,VLOOKUP(I62,hfut,3,TRUE)) -> 141 | K62: 503 | L62: =RANK(K62,Egyéni!$L$3:$L$156,0) -> 11
A63: Tárnok Marcell | B63: 2010 | C63: 9.1 | D63: 156 | E63: 4.13 | F63: 104 | G63: 32.33 | H63: 80 | I63: 00:02:00.800 | J63: =IF(I63<fiú!$D$2,0,VLOOKUP(I63,hfut,3,TRUE)) -> 135 | K63: 475 | L63: =RANK(K63,Egyéni!$L$3:$L$156,0) -> 17
A64: Benkő Szabolcs | B64: 2010 | C64: 8.9 | D64: 165 | E64: 4 | F64: 97 | G64: 39.6 | H64: 102 | I64: 00:02:13.600 | J64: =IF(I64<fiú!$D$2,0,VLOOKUP(I64,hfut,3,TRUE)) -> 96 | K64: 460 | L64: =RANK(K64,Egyéni!$L$3:$L$156,0) -> 18
A67: Dombóvári József Attila Ált. Isk. | M67: =RANK(M69,Csapat!$C$3:P70,0) -> 8
A68: Név | B68: Sz.év | C68: 60 m | E68: Távolugrás | G68: Klabdahajítás | I68: 600 m | K68: Összpont | L68: Helyezés
A69: Kuurstra Mike Norbert | D69: =IF(C69<6.19,0,VLOOKUP(C69,rfut,5,TRUE)) -> 0 | F69: =IF(E69<1.79,0,VLOOKUP(E69,távol,4,TRUE)) -> 0 | H69: =IF(G69<4,0,VLOOKUP(G69,kisl,2,TRUE)) -> 0 | J69: =IF(I69<fiú!$D$2,0,VLOOKUP(I69,hfut,3,TRUE)) -> 0 | K69: =SUM(D69,F69,H69,J69) -> 0 | L69: =RANK(K69,Egyéni!$L$3:$L$156,0) -> 43 | M69: =SUM(K69:K74)-MIN(K69:K74) -> 0
A70: Szabotin Soma | D70: 0 | F70: 0 | H70: 0 | J70: =IF(I70<fiú!$D$2,0,VLOOKUP(I70,hfut,3,TRUE)) -> 0 | K70: 0 | L70: =RANK(K70,Egyéni!$L$3:$L$156,0) -> 43
A71: Szabó Albert Zétény | D71: 0 | F71: 0 | H71: 0 | J71: =IF(I71<fiú!$D$2,0,VLOOKUP(I71,hfut,3,TRUE)) -> 0 | K71: 0 | L71: =RANK(K71,Egyéni!$L$3:$L$156,0) -> 43
A72: Katyi Nimród | D72: 0 | F72: 0 | H72: 0 | J72: =IF(I72<fiú!$D$2,0,VLOOKUP(I72,hfut,3,TRUE)) -> 0 | K72: 0 | L72: =RANK(K72,Egyéni!$L$3:$L$156,0) -> 43
A73: Várai Bence | D73: 0 | F73: 0 | H73: 0 | J73: =IF(I73<fiú!$D$2,0,VLOOKUP(I73,hfut,3,TRUE)) -> 0 | K73: 0 | L73: =RANK(K73,Egyéni!$L$3:$L$156,0) -> 43
A74: Csere Dávid | D74: 0 | F74: 0 | H74: 0 | J74: =IF(I74<fiú!$D$2,0,VLOOKUP(I74,hfut,3,TRUE)) -> 0 | K74: 0 | L74: =RANK(K74,Egyéni!$L$3:$L$156,0) -> 43
A77: Bátaszéki Kanizsai Dorottya Ált. Isk. | M77: =RANK(M79,Csapat!$C$3:P80,0) -> 7
A78: Név | B78: Sz.év | C78: 60 m | E78: Távolugrás | G78: Klabdahajítás | I78: 600 m | K78: Összpont | L78: Helyezés
A79: Gyulai Brendon Attila | B79: 2011 | C79: 9.5 | D79: =IF(C79<6.19,0,VLOOKUP(C79,rfut,5,TRUE)) -> 139 | E79: 3.6 | F79: =IF(E79<1.79,0,VLOOKUP(E79,távol,4,TRUE)) -> 79 | G79: 34.62 | H79: =IF(G79<4,0,VLOOKUP(G79,kisl,2,TRUE)) -> 87 | I79: 00:02:04.100 | J79: =IF(I79<fiú!$D$2,0,VLOOKUP(I79,hfut,3,TRUE)) -> 124 | K79: =SUM(D79,F79,H79,J79) -> 429 | L79: =RANK(K79,Egyéni!$L$3:$L$156,0) -> 33 | M79: =SUM(K79:K84)-MIN(K79:K84) -> 2177
A80: Indrich Krisztián | B80: 2011 | C80: 9.7 | D80: 131 | E80: 4.03 | F80: 99 | G80: 42.18 | H80: 110 | I80: 00:02:11.700 | J80: =IF(I80<fiú!$D$2,0,VLOOKUP(I80,hfut,3,TRUE)) -> 101 | K80: 441 | L80: =RANK(K80,Egyéni!$L$3:$L$156,0) -> 27
A81: Fekete Ágoston Imre | B81: 2010 | C81: 9.4 | D81: 143 | E81: 3.51 | F81: 75 | G81: 35.2 | H81: 88 | I81: 00:01:58.300 | J81: =IF(I81<fiú!$D$2,0,VLOOKUP(I81,hfut,3,TRUE)) -> 142 | K81: 448 | L81: =RANK(K81,Egyéni!$L$3:$L$156,0) -> 22
A82: Liebhauser Áron | B82: 2010 | C82: 9.7 | D82: 131 | E82: 3.99 | F82: 97 | G82: 36.02 | H82: 91 | I82: 00:02:19.700 | J82: =IF(I82<fiú!$D$2,0,VLOOKUP(I82,hfut,3,TRUE)) -> 81 | K82: 400 | L82: =RANK(K82,Egyéni!$L$3:$L$156,0) -> 38
A83: Szabó Patrik | B83: 2010 | C83: 9 | D83: 161 | E83: 4.04 | F83: 99 | G83: 52.39 | H83: 144 | I83: 00:02:30.100 | J83: =IF(I83<fiú!$D$2,0,VLOOKUP(I83,hfut,3,TRUE)) -> 55 | K83: 459 | L83: =RANK(K83,Egyéni!$L$3:$L$156,0) -> 19
A84: Vörös Botond | B84: 2011 | C84: 9.9 | D84: 122 | E84: 3.81 | F84: 89 | G84: 34.97 | H84: 88 | I84: 00:02:13 | J84: =IF(I84<fiú!$D$2,0,VLOOKUP(I84,hfut,3,TRUE)) -> 98 | K84: 397 | L84: =RANK(K84,Egyéni!$L$3:$L$156,0) -> 39
A87: Zombai Általános Iskola | M87: =RANK(M89,Csapat!$C$3:P90,0) -> 5
A88: Név | B88: Sz.év | C88: 60 m | E88: Távolugrás | G88: Klabdahajítás | I88: 600 m | K88: Összpont | L88: Helyezés
A89: Hoffmann Roland | B89: 2010 | C89: 9.5 | D89: =IF(C89<6.19,0,VLOOKUP(C89,rfut,5,TRUE)) -> 139 | E89: 3.81 | F89: =IF(E89<1.79,0,VLOOKUP(E89,távol,4,TRUE)) -> 89 | G89: 32.31 | H89: =IF(G89<4,0,VLOOKUP(G89,kisl,2,TRUE)) -> 80 | I89: 00:02:02.400 | J89: =IF(I89<fiú!$D$2,0,VLOOKUP(I89,hfut,3,TRUE)) -> 130 | K89: =SUM(D89,F89,H89,J89) -> 438 | L89: =RANK(K89,Egyéni!$L$3:$L$156,0) -> 29 | M89: =SUM(K89:K94)-MIN(K89:K94) -> 2291
A90: Homoki Dominik | B90: 2010 | C90: 8.6 | D90: 179 | E90: 4.88 | F90: 142 | G90: 47.81 | H90: 129 | I90: 00:01:54.800 | J90: =IF(I90<fiú!$D$2,0,VLOOKUP(I90,hfut,3,TRUE)) -> 153 | K90: 603 | L90: =RANK(K90,Egyéni!$L$3:$L$156,0) -> 4
A91: Márk Levente | B91: 2010 | C91: 9.2 | D91: 152 | E91: 4.18 | F91: 106 | G91: 35.19 | H91: 88 | I91: 00:02:10.800 | J91: =IF(I91<fiú!$D$2,0,VLOOKUP(I91,hfut,3,TRUE)) -> 104 | K91: 450 | L91: =RANK(K91,Egyéni!$L$3:$L$156,0) -> 21
A92: Borbély-Kovács Krisztián | B92: 2010 | C92: 9.6 | D92: 135 | E92: 3.77 | F92: 87 | G92: 33.77 | H92: 84 | I92: 00:02:11.800 | J92: =IF(I92<fiú!$D$2,0,VLOOKUP(I92,hfut,3,TRUE)) -> 101 | K92: 407 | L92: =RANK(K92,Egyéni!$L$3:$L$156,0) -> 37
A93: Trautmann Krisztián | B93: 2011 | C93: 9.3 | D93: 147 | E93: 3.67 | F93: 82 | G93: 32.35 | H93: 80 | I93: 00:02:18.500 | J93: =IF(I93<fiú!$D$2,0,VLOOKUP(I93,hfut,3,TRUE)) -> 84 | K93: 393 | L93: =RANK(K93,Egyéni!$L$3:$L$156,0) -> 40
A94: Csiki Attila | B94: 2010 | C94: 9.9 | D94: 122 | E94: 3.56 | F94: 77 | G94: 30.8 | H94: 75 | I94: 00:02:30.400 | J94: =IF(I94<fiú!$D$2,0,VLOOKUP(I94,hfut,3,TRUE)) -> 54 | K94: 328 | L94: =RANK(K94,Egyéni!$L$3:$L$156,0) -> 42
A97: Nagydorogi Széchényi Sándor Ált. Isk. | M97: =RANK(M99,Csapat!$C$3:P100,0) -> 4
A98: Név | B98: Sz.év | C98: 60 m | E98: Távolugrás | G98: Klabdahajítás | I98: 600 m | K98: Összpont | L98: Helyezés
A99: Dobosi Donát | B99: 2010 | C99: 9.2 | D99: =IF(C99<6.19,0,VLOOKUP(C99,rfut,5,TRUE)) -> 152 | E99: 4.31 | F99: =IF(E99<1.79,0,VLOOKUP(E99,távol,4,TRUE)) -> 113 | G99: 36.26 | H99: =IF(G99<4,0,VLOOKUP(G99,kisl,2,TRUE)) -> 91 | I99: 00:02:02.300 | J99: =IF(I99<fiú!$D$2,0,VLOOKUP(I99,hfut,3,TRUE)) -> 130 | K99: =SUM(D99,F99,H99,J99) -> 486 | L99: =RANK(K99,Egyéni!$L$3:$L$156,0) -> 16 | M99: =SUM(K99:K104)-MIN(K99:K104) -> 2298
A100: Kocsis Timon | B100: 2010 | C100: 10.2 | D100: 110 | E100: 3.75 | F100: 86 | G100: 30.66 | H100: 75 | I100: 00:02:12.900 | J100: =IF(I100<fiú!$D$2,0,VLOOKUP(I100,hfut,3,TRUE)) -> 98 | K100: 369 | L100: =RANK(K100,Egyéni!$L$3:$L$156,0) -> 41
A101: Lendvai Noel | B101: 2010 | C101: 8.7 | D101: 175 | E101: 4.4 | F101: 118 | G101: 37.92 | H101: 96 | I101: 00:02:02.100 | J101: =IF(I101<fiú!$D$2,0,VLOOKUP(I101,hfut,3,TRUE)) -> 131 | K101: 520 | L101: =RANK(K101,Egyéni!$L$3:$L$156,0) -> 9
A102: Peterdi Zsombor | B102: 2010 | C102: 9.2 | D102: 152 | E102: 4.19 | F102: 107 | G102: 18.42 | H102: 39 | I102: 00:02:04.800 | J102: =IF(I102<fiú!$D$2,0,VLOOKUP(I102,hfut,3,TRUE)) -> 122 | K102: 420 | L102: =RANK(K102,Egyéni!$L$3:$L$156,0) -> 34
A103: Rostás Brendon | B103: 2011 | C103: 9.6 | D103: 135 | E103: 3.94 | F103: 95 | G103: 36.5 | H103: 92 | I103: 00:02:06.100 | J103: =IF(I103<fiú!$D$2,0,VLOOKUP(I103,hfut,3,TRUE)) -> 118 | K103: 440 | L103: =RANK(K103,Egyéni!$L$3:$L$156,0) -> 28
A104: Rostás Richárd Gyula | B104: 2010 | C104: 9.7 | D104: 131 | E104: 3.97 | F104: 96 | G104: 37.86 | H104: 96 | I104: 00:02:09.200 | J104: =IF(I104<fiú!$D$2,0,VLOOKUP(I104,hfut,3,TRUE)) -> 109 | K104: 432 | L104: =RANK(K104,Egyéni!$L$3:$L$156,0) -> 32
M107: =RANK(M109,Csapat!$C$3:P110,0) -> 8
A108: Név | B108: Sz.év | C108: 60 m | E108: Távolugrás | G108: Klabdahajítás | I108: 600 m | K108: Összpont | L108: Helyezés
D109: =IF(C109<6.19,0,VLOOKUP(C109,rfut,5,TRUE)) -> 0 | F109: =IF(E109<1.79,0,VLOOKUP(E109,távol,4,TRUE)) -> 0 | H109: =IF(G109<4,0,VLOOKUP(G109,kisl,2,TRUE)) -> 0 | J109: =IF(I109<fiú!$D$2,0,VLOOKUP(I109,hfut,3,TRUE)) -> 0 | K109: =SUM(D109,F109,H109,J109) -> 0 | L109: =RANK(K109,Egyéni!$L$3:$L$156,0) -> 43 | M109: =SUM(K109:K114)-MIN(K109:K114) -> 0
D110: 0 | F110: 0 | H110: 0 | J110: =IF(I110<fiú!$D$2,0,VLOOKUP(I110,hfut,3,TRUE)) -> 0 | K110: 0 | L110: =RANK(K110,Egyéni!$L$3:$L$156,0) -> 43
D111: 0 | F111: 0 | H111: 0 | J111: =IF(I111<fiú!$D$2,0,VLOOKUP(I111,hfut,3,TRUE)) -> 0 | K111: 0 | L111: =RANK(K111,Egyéni!$L$3:$L$156,0) -> 43
D112: 0 | F112: 0 | H112: 0 | J112: =IF(I112<fiú!$D$2,0,VLOOKUP(I112,hfut,3,TRUE)) -> 0 | K112: 0 | L112: =RANK(K112,Egyéni!$L$3:$L$156,0) -> 43
D113: 0 | F113: 0 | H113: 0 | J113: =IF(I113<fiú!$D$2,0,VLOOKUP(I113,hfut,3,TRUE)) -> 0 | K113: 0 | L113: =RANK(K113,Egyéni!$L$3:$L$156,0) -> 43
D114: 0 | F114: 0 | H114: 0 | J114: =IF(I114<fiú!$D$2,0,VLOOKUP(I114,hfut,3,TRUE)) -> 0 | K114: 0 | L114: =RANK(K114,Egyéni!$L$3:$L$156,0) -> 43
M117: =RANK(M119,Csapat!$C$3:P120,0) -> 8
A118: Név | B118: Sz.év | C118: 60 m | E118: Távolugrás | G118: Klabdahajítás | I118: 600 m | K118: Összpont | L118: Helyezés
D119: =IF(C119<6.19,0,VLOOKUP(C119,rfut,5,TRUE)) -> 0 | F119: =IF(E119<1.79,0,VLOOKUP(E119,távol,4,TRUE)) -> 0 | H119: =IF(G119<4,0,VLOOKUP(G119,kisl,2,TRUE)) -> 0 | J119: =IF(I119<fiú!$D$2,0,VLOOKUP(I119,hfut,3,TRUE)) -> 0 | K119: =SUM(D119,F119,H119,J119) -> 0 | L119: =RANK(K119,Egyéni!$L$3:$L$156,0) -> 43 | M119: =SUM(K119:K124)-MIN(K119:K124) -> 0
D120: 0 | F120: 0 | H120: 0 | J120: =IF(I120<fiú!$D$2,0,VLOOKUP(I120,hfut,3,TRUE)) -> 0 | K120: 0 | L120: =RANK(K120,Egyéni!$L$3:$L$156,0) -> 43
D121: 0 | F121: 0 | H121: 0 | J121: =IF(I121<fiú!$D$2,0,VLOOKUP(I121,hfut,3,TRUE)) -> 0 | K121: 0 | L121: =RANK(K121,Egyéni!$L$3:$L$156,0) -> 43
D122: 0 | F122: 0 | H122: 0 | J122: =IF(I122<fiú!$D$2,0,VLOOKUP(I122,hfut,3,TRUE)) -> 0 | K122: 0 | L122: =RANK(K122,Egyéni!$L$3:$L$156,0) -> 43
D123: 0 | F123: 0 | H123: 0 | J123: =IF(I123<fiú!$D$2,0,VLOOKUP(I123,hfut,3,TRUE)) -> 0 | K123: 0 | L123: =RANK(K123,Egyéni!$L$3:$L$156,0) -> 43
D124: 0 | F124: 0 | H124: 0 | J124: =IF(I124<fiú!$D$2,0,VLOOKUP(I124,hfut,3,TRUE)) -> 0 | K124: 0 | L124: =RANK(K124,Egyéni!$L$3:$L$156,0) -> 43
M127: =RANK(M129,Csapat!$C$3:P130,0) -> 8
A128: Név | B128: Sz.év | C128: 60 m | E128: Távolugrás | G128: Klabdahajítás | I128: 600 m | K128: Összpont | L128: Helyezés
D129: =IF(C129<6.19,0,VLOOKUP(C129,rfut,5,TRUE)) -> 0 | F129: =IF(E129<1.79,0,VLOOKUP(E129,távol,4,TRUE)) -> 0 | H129: =IF(G129<4,0,VLOOKUP(G129,kisl,2,TRUE)) -> 0 | J129: =IF(I129<fiú!$D$2,0,VLOOKUP(I129,hfut,3,TRUE)) -> 0 | K129: =SUM(D129,F129,H129,J129) -> 0 | L129: =RANK(K129,Egyéni!$L$3:$L$156,0) -> 43 | M129: =SUM(K129:K134)-MIN(K129:K134) -> 0
D130: 0 | F130: 0 | H130: 0 | J130: =IF(I130<fiú!$D$2,0,VLOOKUP(I130,hfut,3,TRUE)) -> 0 | K130: 0 | L130: =RANK(K130,Egyéni!$L$3:$L$156,0) -> 43
D131: 0 | F131: 0 | H131: 0 | J131: =IF(I131<fiú!$D$2,0,VLOOKUP(I131,hfut,3,TRUE)) -> 0 | K131: 0 | L131: =RANK(K131,Egyéni!$L$3:$L$156,0) -> 43
D132: 0 | F132: 0 | H132: 0 | J132: =IF(I132<fiú!$D$2,0,VLOOKUP(I132,hfut,3,TRUE)) -> 0 | K132: 0 | L132: =RANK(K132,Egyéni!$L$3:$L$156,0) -> 43
D133: 0 | F133: 0 | H133: 0 | J133: =IF(I133<fiú!$D$2,0,VLOOKUP(I133,hfut,3,TRUE)) -> 0 | K133: 0 | L133: =RANK(K133,Egyéni!$L$3:$L$156,0) -> 43
D134: 0 | F134: 0 | H134: 0 | J134: =IF(I134<fiú!$D$2,0,VLOOKUP(I134,hfut,3,TRUE)) -> 0 | K134: 0 | L134: =RANK(K134,Egyéni!$L$3:$L$156,0) -> 43
M137: =RANK(M139,Csapat!$C$3:P140,0) -> 8
A138: Név | B138: Sz.év | C138: 60 m | E138: Távolugrás | G138: Klabdahajítás | I138: 600 m | K138: Összpont | L138: Helyezés
D139: =IF(C139<6.19,0,VLOOKUP(C139,rfut,5,TRUE)) -> 0 | F139: =IF(E139<1.79,0,VLOOKUP(E139,távol,4,TRUE)) -> 0 | H139: =IF(G139<4,0,VLOOKUP(G139,kisl,2,TRUE)) -> 0 | J139: =IF(I139<fiú!$D$2,0,VLOOKUP(I139,hfut,3,TRUE)) -> 0 | K139: =SUM(D139,F139,H139,J139) -> 0 | L139: =RANK(K139,Egyéni!$L$3:$L$156,0) -> 43 | M139: =SUM(K139:K144)-MIN(K139:K144) -> 0
D140: 0 | F140: 0 | H140: 0 | J140: =IF(I140<fiú!$D$2,0,VLOOKUP(I140,hfut,3,TRUE)) -> 0 | K140: 0 | L140: =RANK(K140,Egyéni!$L$3:$L$156,0) -> 43
D141: 0 | F141: 0 | H141: 0 | J141: =IF(I141<fiú!$D$2,0,VLOOKUP(I141,hfut,3,TRUE)) -> 0 | K141: 0 | L141: =RANK(K141,Egyéni!$L$3:$L$156,0) -> 43
D142: 0 | F142: 0 | H142: 0 | J142: =IF(I142<fiú!$D$2,0,VLOOKUP(I142,hfut,3,TRUE)) -> 0 | K142: 0 | L142: =RANK(K142,Egyéni!$L$3:$L$156,0) -> 43
D143: 0 | F143: 0 | H143: 0 | J143: =IF(I143<fiú!$D$2,0,VLOOKUP(I143,hfut,3,TRUE)) -> 0 | K143: 0 | L143: =RANK(K143,Egyéni!$L$3:$L$156,0) -> 43
D144: 0 | F144: 0 | H144: 0 | J144: =IF(I144<fiú!$D$2,0,VLOOKUP(I144,hfut,3,TRUE)) -> 0 | K144: 0 | L144: =RANK(K144,Egyéni!$L$3:$L$156,0) -> 43
M147: =RANK(M149,Csapat!$C$3:P150,0) -> 8
A148: Név | B148: Sz.év | C148: 60 m | E148: Távolugrás | G148: Klabdahajítás | I148: 600 m | K148: Összpont | L148: Helyezés
D149: =IF(C149<6.19,0,VLOOKUP(C149,rfut,5,TRUE)) -> 0 | F149: =IF(E149<1.79,0,VLOOKUP(E149,távol,4,TRUE)) -> 0 | H149: =IF(G149<4,0,VLOOKUP(G149,kisl,2,TRUE)) -> 0 | J149: =IF(I149<fiú!$D$2,0,VLOOKUP(I149,hfut,3,TRUE)) -> 0 | K149: =SUM(D149,F149,H149,J149) -> 0 | L149: =RANK(K149,Egyéni!$L$3:$L$156,0) -> 43 | M149: =SUM(K149:K154)-MIN(K149:K154) -> 0
D150: 0 | F150: 0 | H150: 0 | J150: =IF(I150<fiú!$D$2,0,VLOOKUP(I150,hfut,3,TRUE)) -> 0 | K150: 0 | L150: =RANK(K150,Egyéni!$L$3:$L$156,0) -> 43
D151: 0 | F151: 0 | H151: 0 | J151: =IF(I151<fiú!$D$2,0,VLOOKUP(I151,hfut,3,TRUE)) -> 0 | K151: 0 | L151: =RANK(K151,Egyéni!$L$3:$L$156,0) -> 43
D152: 0 | F152: 0 | H152: 0 | J152: =IF(I152<fiú!$D$2,0,VLOOKUP(I152,hfut,3,TRUE)) -> 0 | K152: 0 | L152: =RANK(K152,Egyéni!$L$3:$L$156,0) -> 43
D153: 0 | F153: 0 | H153: 0 | J153: =IF(I153<fiú!$D$2,0,VLOOKUP(I153,hfut,3,TRUE)) -> 0 | K153: 0 | L153: =RANK(K153,Egyéni!$L$3:$L$156,0) -> 43
D154: 0 | F154: 0 | H154: 0 | J154: =IF(I154<fiú!$D$2,0,VLOOKUP(I154,hfut,3,TRUE)) -> 0 | K154: 0 | L154: =RANK(K154,Egyéni!$L$3:$L$156,0) -> 43
M157: =RANK(M159,Csapat!$C$3:P160,0) -> 8
A158: Név | B158: Sz.év | C158: 60 m | E158: Távolugrás | G158: Klabdahajítás | I158: 600 m | K158: Összpont | L158: Helyezés
D159: =IF(C159<6.19,0,VLOOKUP(C159,rfut,5,TRUE)) -> 0 | F159: =IF(E159<1.79,0,VLOOKUP(E159,távol,4,TRUE)) -> 0 | H159: =IF(G159<4,0,VLOOKUP(G159,kisl,2,TRUE)) -> 0 | J159: =IF(I159<fiú!$D$2,0,VLOOKUP(I159,hfut,3,TRUE)) -> 0 | K159: =SUM(D159,F159,H159,J159) -> 0 | L159: =RANK(K159,Egyéni!$L$3:$L$156,0) -> 43 | M159: =SUM(K159:K164)-MIN(K159:K164) -> 0
D160: 0 | F160: 0 | H160: 0 | J160: =IF(I160<fiú!$D$2,0,VLOOKUP(I160,hfut,3,TRUE)) -> 0 | K160: 0 | L160: =RANK(K160,Egyéni!$L$3:$L$156,0) -> 43
D161: 0 | F161: 0 | H161: 0 | J161: =IF(I161<fiú!$D$2,0,VLOOKUP(I161,hfut,3,TRUE)) -> 0 | K161: 0 | L161: =RANK(K161,Egyéni!$L$3:$L$156,0) -> 43
D162: 0 | F162: 0 | H162: 0 | J162: =IF(I162<fiú!$D$2,0,VLOOKUP(I162,hfut,3,TRUE)) -> 0 | K162: 0 | L162: =RANK(K162,Egyéni!$L$3:$L$156,0) -> 43
D163: 0 | F163: 0 | H163: 0 | J163: =IF(I163<fiú!$D$2,0,VLOOKUP(I163,hfut,3,TRUE)) -> 0 | K163: 0 | L163: =RANK(K163,Egyéni!$L$3:$L$156,0) -> 43
D164: 0 | F164: 0 | H164: 0 | J164: =IF(I164<fiú!$D$2,0,VLOOKUP(I164,hfut,3,TRUE)) -> 0 | K164: 0 | L164: =RANK(K164,Egyéni!$L$3:$L$156,0) -> 43
M167: =RANK(M169,Csapat!$C$3:P170,0) -> 8
A168: Név | B168: Sz.év | C168: 60 m | E168: Távolugrás | G168: Klabdahajítás | I168: 600 m | K168: Összpont | L168: Helyezés
D169: =IF(C169<6.19,0,VLOOKUP(C169,rfut,5,TRUE)) -> 0 | F169: =IF(E169<1.79,0,VLOOKUP(E169,távol,4,TRUE)) -> 0 | H169: =IF(G169<4,0,VLOOKUP(G169,kisl,2,TRUE)) -> 0 | J169: =IF(I169<fiú!$D$2,0,VLOOKUP(I169,hfut,3,TRUE)) -> 0 | K169: =SUM(D169,F169,H169,J169) -> 0 | L169: =RANK(K169,Egyéni!$L$3:$L$156,0) -> 43 | M169: =SUM(K169:K174)-MIN(K169:K174) -> 0
D170: 0 | F170: 0 | H170: 0 | J170: =IF(I170<fiú!$D$2,0,VLOOKUP(I170,hfut,3,TRUE)) -> 0 | K170: 0 | L170: =RANK(K170,Egyéni!$L$3:$L$156,0) -> 43
D171: 0 | F171: 0 | H171: 0 | J171: =IF(I171<fiú!$D$2,0,VLOOKUP(I171,hfut,3,TRUE)) -> 0 | K171: 0 | L171: =RANK(K171,Egyéni!$L$3:$L$156,0) -> 43
D172: 0 | F172: 0 | H172: 0 | J172: =IF(I172<fiú!$D$2,0,VLOOKUP(I172,hfut,3,TRUE)) -> 0 | K172: 0 | L172: =RANK(K172,Egyéni!$L$3:$L$156,0) -> 43
D173: 0 | F173: 0 | H173: 0 | J173: =IF(I173<fiú!$D$2,0,VLOOKUP(I173,hfut,3,TRUE)) -> 0 | K173: 0 | L173: =RANK(K173,Egyéni!$L$3:$L$156,0) -> 43
D174: 0 | F174: 0 | H174: 0 | J174: =IF(I174<fiú!$D$2,0,VLOOKUP(I174,hfut,3,TRUE)) -> 0 | K174: 0 | L174: =RANK(K174,Egyéni!$L$3:$L$156,0) -> 43
M177: =RANK(M179,Csapat!$C$3:P180,0) -> 8
A178: Név | B178: Sz.év | C178: 60 m | E178: Távolugrás | G178: Klabdahajítás | I178: 600 m | K178: Összpont | L178: Helyezés
D179: =IF(C179<6.19,0,VLOOKUP(C179,rfut,5,TRUE)) -> 0 | F179: =IF(E179<1.79,0,VLOOKUP(E179,távol,4,TRUE)) -> 0 | H179: =IF(G179<4,0,VLOOKUP(G179,kisl,2,TRUE)) -> 0 | J179: =IF(I179<fiú!$D$2,0,VLOOKUP(I179,hfut,3,TRUE)) -> 0 | K179: =SUM(D179,F179,H179,J179) -> 0 | L179: =RANK(K179,Egyéni!$L$3:$L$156,0) -> 43 | M179: =SUM(K179:K184)-MIN(K179:K184) -> 0
D180: 0 | F180: 0 | H180: 0 | J180: =IF(I180<fiú!$D$2,0,VLOOKUP(I180,hfut,3,TRUE)) -> 0 | K180: 0 | L180: =RANK(K180,Egyéni!$L$3:$L$156,0) -> 43
D181: 0 | F181: 0 | H181: 0 | J181: =IF(I181<fiú!$D$2,0,VLOOKUP(I181,hfut,3,TRUE)) -> 0 | K181: 0 | L181: =RANK(K181,Egyéni!$L$3:$L$156,0) -> 43
D182: 0 | F182: 0 | H182: 0 | J182: =IF(I182<fiú!$D$2,0,VLOOKUP(I182,hfut,3,TRUE)) -> 0 | K182: 0 | L182: =RANK(K182,Egyéni!$L$3:$L$156,0) -> 43
D183: 0 | F183: 0 | H183: 0 | J183: =IF(I183<fiú!$D$2,0,VLOOKUP(I183,hfut,3,TRUE)) -> 0 | K183: 0 | L183: =RANK(K183,Egyéni!$L$3:$L$156,0) -> 43
D184: 0 | F184: 0 | H184: 0 | J184: =IF(I184<fiú!$D$2,0,VLOOKUP(I184,hfut,3,TRUE)) -> 0 | K184: 0 | L184: =RANK(K184,Egyéni!$L$3:$L$156,0) -> 43
M187: =RANK(M189,Csapat!$C$3:P190,0) -> 8
A188: Név | B188: Sz.év | C188: 60 m | E188: Távolugrás | G188: Klabdahajítás | I188: 600 m | K188: Összpont | L188: Helyezés
D189: =IF(C189<6.19,0,VLOOKUP(C189,rfut,5,TRUE)) -> 0 | F189: =IF(E189<1.79,0,VLOOKUP(E189,távol,4,TRUE)) -> 0 | H189: =IF(G189<4,0,VLOOKUP(G189,kisl,2,TRUE)) -> 0 | J189: =IF(I189<fiú!$D$2,0,VLOOKUP(I189,hfut,3,TRUE)) -> 0 | K189: =SUM(D189,F189,H189,J189) -> 0 | L189: =RANK(K189,Egyéni!$L$3:$L$156,0) -> 43 | M189: =SUM(K189:K194)-MIN(K189:K194) -> 0
D190: 0 | F190: 0 | H190: 0 | J190: =IF(I190<fiú!$D$2,0,VLOOKUP(I190,hfut,3,TRUE)) -> 0 | K190: 0 | L190: =RANK(K190,Egyéni!$L$3:$L$156,0) -> 43
D191: 0 | F191: 0 | H191: 0 | J191: =IF(I191<fiú!$D$2,0,VLOOKUP(I191,hfut,3,TRUE)) -> 0 | K191: 0 | L191: =RANK(K191,Egyéni!$L$3:$L$156,0) -> 43
D192: 0 | F192: 0 | H192: 0 | J192: =IF(I192<fiú!$D$2,0,VLOOKUP(I192,hfut,3,TRUE)) -> 0 | K192: 0 | L192: =RANK(K192,Egyéni!$L$3:$L$156,0) -> 43
D193: 0 | F193: 0 | H193: 0 | J193: =IF(I193<fiú!$D$2,0,VLOOKUP(I193,hfut,3,TRUE)) -> 0 | K193: 0 | L193: =RANK(K193,Egyéni!$L$3:$L$156,0) -> 43
D194: 0 | F194: 0 | H194: 0 | J194: =IF(I194<fiú!$D$2,0,VLOOKUP(I194,hfut,3,TRUE)) -> 0 | K194: 0 | L194: =RANK(K194,Egyéni!$L$3:$L$156,0) -> 43
M197: =RANK(M199,Csapat!$C$3:P200,0) -> 8
A198: Név | B198: Sz.év | C198: 60 m | E198: Távolugrás | G198: Klabdahajítás | I198: 600 m | K198: Összpont | L198: Helyezés
D199: =IF(C199<6.19,0,VLOOKUP(C199,rfut,5,TRUE)) -> 0 | F199: =IF(E199<1.79,0,VLOOKUP(E199,távol,4,TRUE)) -> 0 | H199: =IF(G199<4,0,VLOOKUP(G199,kisl,2,TRUE)) -> 0 | J199: =IF(I199<fiú!$D$2,0,VLOOKUP(I199,hfut,3,TRUE)) -> 0 | K199: =SUM(D199,F199,H199,J199) -> 0 | L199: =RANK(K199,Egyéni!$L$3:$L$156,0) -> 43 | M199: =SUM(K199:K204)-MIN(K199:K204) -> 0
D200: 0 | F200: 0 | H200: 0 | J200: =IF(I200<fiú!$D$2,0,VLOOKUP(I200,hfut,3,TRUE)) -> 0 | K200: 0 | L200: =RANK(K200,Egyéni!$L$3:$L$156,0) -> 43
D201: 0 | F201: 0 | H201: 0 | J201: =IF(I201<fiú!$D$2,0,VLOOKUP(I201,hfut,3,TRUE)) -> 0 | K201: 0 | L201: =RANK(K201,Egyéni!$L$3:$L$156,0) -> 43
D202: 0 | F202: 0 | H202: 0 | J202: =IF(I202<fiú!$D$2,0,VLOOKUP(I202,hfut,3,TRUE)) -> 0 | K202: 0 | L202: =RANK(K202,Egyéni!$L$3:$L$156,0) -> 43
D203: 0 | F203: 0 | H203: 0 | J203: =IF(I203<fiú!$D$2,0,VLOOKUP(I203,hfut,3,TRUE)) -> 0 | K203: 0 | L203: =RANK(K203,Egyéni!$L$3:$L$156,0) -> 43
D204: 0 | F204: 0 | H204: 0 | J204: =IF(I204<fiú!$D$2,0,VLOOKUP(I204,hfut,3,TRUE)) -> 0 | K204: 0 | L204: =RANK(K204,Egyéni!$L$3:$L$156,0) -> 43
M207: =RANK(M209,Csapat!$C$3:P210,0) -> 8
A208: Név | B208: Sz.év | C208: 60 m | E208: Távolugrás | G208: Klabdahajítás | I208: 600 m | K208: Összpont | L208: Helyezés
D209: =IF(C209<6.19,0,VLOOKUP(C209,rfut,5,TRUE)) -> 0 | F209: =IF(E209<1.79,0,VLOOKUP(E209,távol,4,TRUE)) -> 0 | H209: =IF(G209<4,0,VLOOKUP(G209,kisl,2,TRUE)) -> 0 | J209: =IF(I209<fiú!$D$2,0,VLOOKUP(I209,hfut,3,TRUE)) -> 0 | K209: =SUM(D209,F209,H209,J209) -> 0 | L209: =RANK(K209,Egyéni!$L$3:$L$156,0) -> 43 | M209: =SUM(K209:K214)-MIN(K209:K214) -> 0
D210: 0 | F210: 0 | H210: 0 | J210: =IF(I210<fiú!$D$2,0,VLOOKUP(I210,hfut,3,TRUE)) -> 0 | K210: 0 | L210: =RANK(K210,Egyéni!$L$3:$L$156,0) -> 43
D211: 0 | F211: 0 | H211: 0 | J211: =IF(I211<fiú!$D$2,0,VLOOKUP(I211,hfut,3,TRUE)) -> 0 | K211: 0 | L211: =RANK(K211,Egyéni!$L$3:$L$156,0) -> 43
D212: 0 | F212: 0 | H212: 0 | J212: =IF(I212<fiú!$D$2,0,VLOOKUP(I212,hfut,3,TRUE)) -> 0 | K212: 0 | L212: =RANK(K212,Egyéni!$L$3:$L$156,0) -> 43
D213: 0 | F213: 0 | H213: 0 | J213: =IF(I213<fiú!$D$2,0,VLOOKUP(I213,hfut,3,TRUE)) -> 0 | K213: 0 | L213: =RANK(K213,Egyéni!$L$3:$L$156,0) -> 43
D214: 0 | F214: 0 | H214: 0 | J214: =IF(I214<fiú!$D$2,0,VLOOKUP(I214,hfut,3,TRUE)) -> 0 | K214: 0 | L214: =RANK(K214,Egyéni!$L$3:$L$156,0) -> 43
M217: =RANK(M219,Csapat!$C$3:P220,0) -> 8
A218: Név | B218: Sz.év | C218: 60 m | E218: Távolugrás | G218: Klabdahajítás | I218: 600 m | K218: Összpont | L218: Helyezés
D219: =IF(C219<6.19,0,VLOOKUP(C219,rfut,5,TRUE)) -> 0 | F219: =IF(E219<1.79,0,VLOOKUP(E219,távol,4,TRUE)) -> 0 | H219: =IF(G219<4,0,VLOOKUP(G219,kisl,2,TRUE)) -> 0 | J219: =IF(I219<fiú!$D$2,0,VLOOKUP(I219,hfut,3,TRUE)) -> 0 | K219: =SUM(D219,F219,H219,J219) -> 0 | L219: =RANK(K219,Egyéni!$L$3:$L$156,0) -> 43 | M219: =SUM(K219:K224)-MIN(K219:K224) -> 0
D220: 0 | F220: 0 | H220: 0 | J220: =IF(I220<fiú!$D$2,0,VLOOKUP(I220,hfut,3,TRUE)) -> 0 | K220: 0 | L220: =RANK(K220,Egyéni!$L$3:$L$156,0) -> 43
D221: 0 | F221: 0 | H221: 0 | J221: =IF(I221<fiú!$D$2,0,VLOOKUP(I221,hfut,3,TRUE)) -> 0 | K221: 0 | L221: =RANK(K221,Egyéni!$L$3:$L$156,0) -> 43
D222: 0 | F222: 0 | H222: 0 | J222: =IF(I222<fiú!$D$2,0,VLOOKUP(I222,hfut,3,TRUE)) -> 0 | K222: 0 | L222: =RANK(K222,Egyéni!$L$3:$L$156,0) -> 43
D223: 0 | F223: 0 | H223: 0 | J223: =IF(I223<fiú!$D$2,0,VLOOKUP(I223,hfut,3,TRUE)) -> 0 | K223: 0 | L223: =RANK(K223,Egyéni!$L$3:$L$156,0) -> 43
D224: 0 | F224: 0 | H224: 0 | J224: =IF(I224<fiú!$D$2,0,VLOOKUP(I224,hfut,3,TRUE)) -> 0 | K224: 0 | L224: =RANK(K224,Egyéni!$L$3:$L$156,0) -> 43
M227: =RANK(M229,Csapat!$C$3:P230,0) -> 8
A228: Név | B228: Sz.év | C228: 60 m | E228: Távolugrás | G228: Klabdahajítás | I228: 600 m | K228: Összpont | L228: Helyezés
D229: =IF(C229<6.19,0,VLOOKUP(C229,rfut,5,TRUE)) -> 0 | F229: =IF(E229<1.79,0,VLOOKUP(E229,távol,4,TRUE)) -> 0 | H229: =IF(G229<4,0,VLOOKUP(G229,kisl,2,TRUE)) -> 0 | J229: =IF(I229<fiú!$D$2,0,VLOOKUP(I229,hfut,3,TRUE)) -> 0 | K229: =SUM(D229,F229,H229,J229) -> 0 | L229: =RANK(K229,Egyéni!$L$3:$L$156,0) -> 43 | M229: =SUM(K229:K234)-MIN(K229:K234) -> 0
D230: 0 | F230: 0 | H230: 0 | J230: =IF(I230<fiú!$D$2,0,VLOOKUP(I230,hfut,3,TRUE)) -> 0 | K230: 0 | L230: =RANK(K230,Egyéni!$L$3:$L$156,0) -> 43
D231: 0 | F231: 0 | H231: 0 | J231: =IF(I231<fiú!$D$2,0,VLOOKUP(I231,hfut,3,TRUE)) -> 0 | K231: 0 | L231: =RANK(K231,Egyéni!$L$3:$L$156,0) -> 43
D232: 0 | F232: 0 | H232: 0 | J232: =IF(I232<fiú!$D$2,0,VLOOKUP(I232,hfut,3,TRUE)) -> 0 | K232: 0 | L232: =RANK(K232,Egyéni!$L$3:$L$156,0) -> 43
D233: 0 | F233: 0 | H233: 0 | J233: =IF(I233<fiú!$D$2,0,VLOOKUP(I233,hfut,3,TRUE)) -> 0 | K233: 0 | L233: =RANK(K233,Egyéni!$L$3:$L$156,0) -> 43
D234: 0 | F234: 0 | H234: 0 | J234: =IF(I234<fiú!$D$2,0,VLOOKUP(I234,hfut,3,TRUE)) -> 0 | K234: 0 | L234: =RANK(K234,Egyéni!$L$3:$L$156,0) -> 43
M237: =RANK(M239,Csapat!$C$3:P240,0) -> 8
A238: Név | B238: Sz.év | C238: 60 m | E238: Távolugrás | G238: Klabdahajítás | I238: 600 m | K238: Összpont | L238: Helyezés
D239: =IF(C239<6.19,0,VLOOKUP(C239,rfut,5,TRUE)) -> 0 | F239: =IF(E239<1.79,0,VLOOKUP(E239,távol,4,TRUE)) -> 0 | H239: =IF(G239<4,0,VLOOKUP(G239,kisl,2,TRUE)) -> 0 | J239: =IF(I239<fiú!$D$2,0,VLOOKUP(I239,hfut,3,TRUE)) -> 0 | K239: =SUM(D239,F239,H239,J239) -> 0 | L239: =RANK(K239,Egyéni!$L$3:$L$156,0) -> 43 | M239: =SUM(K239:K244)-MIN(K239:K244) -> 0
D240: 0 | F240: 0 | H240: 0 | J240: =IF(I240<fiú!$D$2,0,VLOOKUP(I240,hfut,3,TRUE)) -> 0 | K240: 0 | L240: =RANK(K240,Egyéni!$L$3:$L$156,0) -> 43
D241: 0 | F241: 0 | H241: 0 | J241: =IF(I241<fiú!$D$2,0,VLOOKUP(I241,hfut,3,TRUE)) -> 0 | K241: 0 | L241: =RANK(K241,Egyéni!$L$3:$L$156,0) -> 43
D242: 0 | F242: 0 | H242: 0 | J242: =IF(I242<fiú!$D$2,0,VLOOKUP(I242,hfut,3,TRUE)) -> 0 | K242: 0 | L242: =RANK(K242,Egyéni!$L$3:$L$156,0) -> 43
D243: 0 | F243: 0 | H243: 0 | J243: =IF(I243<fiú!$D$2,0,VLOOKUP(I243,hfut,3,TRUE)) -> 0 | K243: 0 | L243: =RANK(K243,Egyéni!$L$3:$L$156,0) -> 43
D244: 0 | F244: 0 | H244: 0 | J244: =IF(I244<fiú!$D$2,0,VLOOKUP(I244,hfut,3,TRUE)) -> 0 | K244: 0 | L244: =RANK(K244,Egyéni!$L$3:$L$156,0) -> 43

Sheet Egyéni
A1: III. korcsoport FIÚ EGYÉNI végeredmény (Rendezés Ctrl + g )
A2: Ssz | B2: Név | C2: Szév | D2: 60 m | E2: p | F2: T | G2: p | H2: kisl | I2: p | J2: 600 m | K2: p | L2: Összp | N2: Iskola
A3: 1. | B3: =Be!A5 -> Démuth Béla Kevin | C3: =Be!B5 -> 2010 | D3: =Be!C5 -> 8.4 | E3: =Be!D5 -> 189 | F3: =Be!E5 -> 4.43 | G3: =Be!F5 -> 119 | H3: =Be!G5 -> 58.37 | I3: =Be!H5 -> 165 | J3: =Be!I5 -> 00:01:48.800 | K3: =Be!J5 -> 174 | L3: =Be!K5 -> 647 | N3: =Be!M5 -> Vak Bottyán Ált. Isk. Pálfa
A4: 2. | B4: =Be!A33 -> Szőts Dávid | C4: =Be!B33 -> 2010 | D4: =Be!C33 -> 8.3 | E4: =Be!D33 -> 193 | F4: =Be!E33 -> 5.19 | G4: =Be!F33 -> 159 | H4: =Be!G33 -> 42.08 | I4: =Be!H33 -> 110 | J4: =Be!I33 -> 00:01:49 | K4: =Be!J33 -> 173 | L4: =Be!K33 -> 635 | N4: =Be!A27 -> Bonyhádi Általános Iskola
A5: 3. | B5: =Be!A32 -> Markóczi Donát | C5: =Be!B32 -> 2010 | D5: =Be!C32 -> 8.2 | E5: =Be!D32 -> 198 | F5: =Be!E32 -> 4.42 | G5: =Be!F32 -> 119 | H5: =Be!G32 -> 47.72 | I5: =Be!H32 -> 128 | J5: =Be!I32 -> 00:01:52.800 | K5: =Be!J32 -> 160 | L5: =Be!K32 -> 605 | N5: =Be!A27 -> Bonyhádi Általános Iskola
A6: 4. | B6: =Be!A90 -> Homoki Dominik | C6: =Be!B90 -> 2010 | D6: =Be!C90 -> 8.6 | E6: =Be!D90 -> 179 | F6: =Be!E90 -> 4.88 | G6: =Be!F90 -> 142 | H6: =Be!G90 -> 47.81 | I6: =Be!H90 -> 129 | J6: =Be!I90 -> 00:01:54.800 | K6: =Be!J90 -> 153 | L6: =Be!K90 -> 603 | N6: =Be!A87 -> Zombai Általános Iskola
A7: 5. | B7: =Be!A31 -> Magyar Péter József | C7: =Be!B31 -> 2010 | D7: =Be!C31 -> 8.5 | E7: =Be!D31 -> 184 | F7: =Be!E31 -> 4.69 | G7: =Be!F31 -> 132 | H7: =Be!G31 -> 38.96 | I7: =Be!H31 -> 100 | J7: =Be!I31 -> 00:01:55.900 | K7: =Be!J31 -> 149 | L7: =Be!K31 -> 565 | N7: =Be!A27 -> Bonyhádi Általános Iskola
A8: 6. | B8: =Be!A41 -> Nyisztor Gergely | C8: =Be!B41 -> 2010 | D8: =Be!C41 -> 9.4 | E8: =Be!D41 -> 143 | F8: =Be!E41 -> 4.44 | G8: =Be!F41 -> 120 | H8: =Be!G41 -> 48.53 | I8: =Be!H41 -> 131 | J8: =Be!I41 -> 00:01:56.200 | K8: =Be!J41 -> 149 | L8: =Be!K41 -> 543 | N8: =Be!A37 -> Szekszárdi Garay János Általános Iskola
A9: 7. | B9: =Be!A4 -> Horváth Ábel | C9: =Be!B4 -> 2010 | D9: =Be!C4 -> 9 | E9: =Be!D4 -> 161 | F9: =Be!E4 -> 4.36 | G9: =Be!F4 -> 116 | H9: =Be!G4 -> 43.4 | I9: =Be!H4 -> 114 | J9: =Be!I4 -> 00:01:56.100 | K9: =Be!J4 -> 149 | L9: =Be!K4 -> 540 | N9: =Be!M4 -> Dombóvári Illyés Gy. Gimnázium
A10: 8. | B10: =Be!A39 -> Gyenes Kristóf | C10: =Be!B39 -> 2010 | D10: =Be!C39 -> 8.4 | E10: =Be!D39 -> 189 | F10: =Be!E39 -> 4.25 | G10: =Be!F39 -> 110 | H10: =Be!G39 -> 40.36 | I10: =Be!H39 -> 104 | J10: =Be!I39 -> 00:02:01.300 | K10: =Be!J39 -> 133 | L10: =Be!K39 -> 536 | N10: =Be!A37 -> Szekszárdi Garay János Általános Iskola
A11: 9. | B11: =Be!A101 -> Lendvai Noel | C11: =Be!B101 -> 2010 | D11: =Be!C101 -> 8.7 | E11: =Be!D101 -> 175 | F11: =Be!E101 -> 4.4 | G11: =Be!F101 -> 118 | H11: =Be!G101 -> 37.92 | I11: =Be!H101 -> 96 | J11: =Be!I101 -> 00:02:02.100 | K11: =Be!J101 -> 131 | L11: =Be!K101 -> 520 | N11: =Be!A97 -> Nagydorogi Széchényi Sándor Ált. Isk.
A12: 10. | B12: =Be!A61 -> Pataki Gergő | C12: =Be!B61 -> 2010 | D12: =Be!C61 -> 9.2 | E12: =Be!D61 -> 152 | F12: =Be!E61 -> 4.2 | G12: =Be!F61 -> 107 | H12: =Be!G61 -> 42.02 | I12: =Be!H61 -> 110 | J12: =Be!I61 -> 00:01:58.300 | K12: =Be!J61 -> 142 | L12: =Be!K61 -> 511 | N12: =Be!A57 -> Szt. Orsolya Bencés Ált. Isk. Dombóvár
A13: 11. | B13: =Be!A62 -> Roósz Balázs | C13: =Be!B62 -> 2011 | D13: =Be!C62 -> 8.9 | E13: =Be!D62 -> 165 | F13: =Be!E62 -> 4.07 | G13: =Be!F62 -> 101 | H13: =Be!G62 -> 37.88 | I13: =Be!H62 -> 96 | J13: =Be!I62 -> 00:01:58.600 | K13: =Be!J62 -> 141 | L13: =Be!K62 -> 503 | N13: =Be!A57 -> Szt. Orsolya Bencés Ált. Isk. Dombóvár
A14: 12. | B14: =Be!A40 -> Gyenes Szilárd | C14: =Be!B40 -> 2010 | D14: =Be!C40 -> 8.8 | E14: =Be!D40 -> 170 | F14: =Be!E40 -> 4.2 | G14: =Be!F40 -> 107 | H14: =Be!G40 -> 35.34 | I14: =Be!H40 -> 89 | J14: =Be!I40 -> 00:02:00.400 | K14: =Be!J40 -> 136 | L14: =Be!K40 -> 502 | N14: =Be!A37 -> Szekszárdi Garay János Általános Iskola
A15: 13. | B15: =Be!A59 -> Kutyik-Szabó Károly | C15: =Be!B59 -> 2010 | D15: =Be!C59 -> 9.3 | E15: =Be!D59 -> 147 | F15: =Be!E59 -> 4.2 | G15: =Be!F59 -> 107 | H15: =Be!G59 -> 37.02 | I15: =Be!H59 -> 94 | J15: =Be!I59 -> 00:01:55.800 | K15: =Be!J59 -> 150 | L15: =Be!K59 -> 498 | N15: =Be!A57 -> Szt. Orsolya Bencés Ált. Isk. Dombóvár
A16: 14. | B16: =Be!A50 -> Vörös Arlen Botond | C16: =Be!B50 -> 2010 | D16: =Be!C50 -> 9.4 | E16: =Be!D50 -> 143 | F16: =Be!E50 -> 4.25 | G16: =Be!F50 -> 110 | H16: =Be!G50 -> 42.84 | I16: =Be!H50 -> 112 | J16: =Be!I50 -> 00:02:04.600 | K16: =Be!J50 -> 123 | L16: =Be!K50 -> 488 | N16: =Be!A47 -> PTE Gyakorló Ált. Isk. Szekszárd
A17: 15. | B17: =Be!A30 -> János Olivér | C17: =Be!B30 -> 2011 | D17: =Be!C30 -> 9 | E17: =Be!D30 -> 161 | F17: =Be!E30 -> 3.96 | G17: =Be!F30 -> 96 | H17: =Be!G30 -> 32.59 | I17: =Be!H30 -> 80 | J17: =Be!I30 -> 00:01:55.400 | K17: =Be!J30 -> 151 | L17: =Be!K30 -> 488 | N17: =Be!A27 -> Bonyhádi Általános Iskola
A18: 16. | B18: =Be!A99 -> Dobosi Donát | C18: =Be!B99 -> 2010 | D18: =Be!C99 -> 9.2 | E18: =Be!D99 -> 152 | F18: =Be!E99 -> 4.31 | G18: =Be!F99 -> 113 | H18: =Be!G99 -> 36.26 | I18: =Be!H99 -> 91 | J18: =Be!I99 -> 00:02:02.300 | K18: =Be!J99 -> 130 | L18: =Be!K99 -> 486 | N18: =Be!A97 -> Nagydorogi Széchényi Sándor Ált. Isk.
A19: 17. | B19: =Be!A63 -> Tárnok Marcell | C19: =Be!B63 -> 2010 | D19: =Be!C63 -> 9.1 | E19: =Be!D63 -> 156 | F19: =Be!E63 -> 4.13 | G19: =Be!F63 -> 104 | H19: =Be!G63 -> 32.33 | I19: =Be!H63 -> 80 | J19: =Be!I63 -> 00:02:00.800 | K19: =Be!J63 -> 135 | L19: =Be!K63 -> 475 | N19: =Be!A57 -> Szt. Orsolya Bencés Ált. Isk. Dombóvár
A20: 18. | B20: =Be!A64 -> Benkő Szabolcs | C20: =Be!B64 -> 2010 | D20: =Be!C64 -> 8.9 | E20: =Be!D64 -> 165 | F20: =Be!E64 -> 4 | G20: =Be!F64 -> 97 | H20: =Be!G64 -> 39.6 | I20: =Be!H64 -> 102 | J20: =Be!I64 -> 00:02:13.600 | K20: =Be!J64 -> 96 | L20: =Be!K64 -> 460 | N20: =Be!A57 -> Szt. Orsolya Bencés Ált. Isk. Dombóvár
A21: 19. | B21: =Be!A83 -> Szabó Patrik | C21: =Be!B83 -> 2010 | D21: =Be!C83 -> 9 | E21: =Be!D83 -> 161 | F21: =Be!E83 -> 4.04 | G21: =Be!F83 -> 99 | H21: =Be!G83 -> 52.39 | I21: =Be!H83 -> 144 | J21: =Be!I83 -> 00:02:30.100 | K21: =Be!J83 -> 55 | L21: =Be!K83 -> 459 | N21: =Be!A77 -> Bátaszéki Kanizsai Dorottya Ált. Isk.
A22: 20. | B22: =Be!A34 -> Tusa Zétény | C22: =Be!B34 -> 2011 | D22: =Be!C34 -> 9.2 | E22: =Be!D34 -> 152 | F22: =Be!E34 -> 3.62 | G22: =Be!F34 -> 80 | H22: =Be!G34 -> 32.74 | I22: =Be!H34 -> 81 | J22: =Be!I34 -> 00:01:57.700 | K22: =Be!J34 -> 144 | L22: =Be!K34 -> 457 | N22: =Be!A27 -> Bonyhádi Általános Iskola
A23: 21. | B23: =Be!A91 -> Márk Levente | C23: =Be!B91 -> 2010 | D23: =Be!C91 -> 9.2 | E23: =Be!D91 -> 152 | F23: =Be!E91 -> 4.18 | G23: =Be!F91 -> 106 | H23: =Be!G91 -> 35.19 | I23: =Be!H91 -> 88 | J23: =Be!I91 -> 00:02:10.800 | K23: =Be!J91 -> 104 | L23: =Be!K91 -> 450 | N23: =Be!A87 -> Zombai Általános Iskola
A24: 22. | B24: =Be!A81 -> Fekete Ágoston Imre | C24: =Be!B81 -> 2010 | D24: =Be!C81 -> 9.4 | E24: =Be!D81 -> 143 | F24: =Be!E81 -> 3.51 | G24: =Be!F81 -> 75 | H24: =Be!G81 -> 35.2 | I24: =Be!H81 -> 88 | J24: =Be!I81 -> 00:01:58.300 | K24: =Be!J81 -> 142 | L24: =Be!K81 -> 448 | N24: =Be!A77 -> Bátaszéki Kanizsai Dorottya Ált. Isk.
A25: 23. | B25: =Be!A60 -> Lehőcz Zétény | C25: =Be!B60 -> 2010 | D25: =Be!C60 -> 9.3 | E25: =Be!D60 -> 147 | F25: =Be!E60 -> 3.86 | G25: =Be!F60 -> 91 | H25: =Be!G60 -> 33.81 | I25: =Be!H60 -> 84 | J25: =Be!I60 -> 00:02:04.600 | K25: =Be!J60 -> 123 | L25: =Be!K60 -> 445 | N25: =Be!A57 -> Szt. Orsolya Bencés Ált. Isk. Dombóvár
A26: 24. | B26: =Be!A49 -> Joósz Ákos | C26: =Be!B49 -> 2011 | D26: =Be!C49 -> 9.6 | E26: =Be!D49 -> 135 | F26: =Be!E49 -> 3.97 | G26: =Be!F49 -> 96 | H26: =Be!G49 -> 44.82 | I26: =Be!H49 -> 119 | J26: =Be!I49 -> 00:02:14.600 | K26: =Be!J49 -> 94 | L26: =Be!K49 -> 444 | N26: =Be!A47 -> PTE Gyakorló Ált. Isk. Szekszárd
A27: 25. | B27: =Be!A53 -> Bakó Mihály | C27: =Be!B53 -> 2011 | D27: =Be!C53 -> 9.3 | E27: =Be!D53 -> 147 | F27: =Be!E53 -> 4.05 | G27: =Be!F53 -> 100 | H27: =Be!G53 -> 36.93 | I27: =Be!H53 -> 93 | J27: =Be!I53 -> 00:02:11.200 | K27: =Be!J53 -> 103 | L27: =Be!K53 -> 443 | N27: =Be!A47 -> PTE Gyakorló Ált. Isk. Szekszárd
A28: 26. | B28: =Be!A43 -> Rend Hunor | C28: =Be!B43 -> 2011 | D28: =Be!C43 -> 9.8 | E28: =Be!D43 -> 126 | F28: =Be!E43 -> 3.85 | G28: =Be!F43 -> 90 | H28: =Be!G43 -> 37.51 | I28: =Be!H43 -> 95 | J28: =Be!I43 -> 00:02:01.500 | K28: =Be!J43 -> 132 | L28: =Be!K43 -> 443 | N28: =Be!A37 -> Szekszárdi Garay János Általános Iskola
A29: 27. | B29: =Be!A80 -> Indrich Krisztián | C29: =Be!B80 -> 2011 | D29: =Be!C80 -> 9.7 | E29: =Be!D80 -> 131 | F29: =Be!E80 -> 4.03 | G29: =Be!F80 -> 99 | H29: =Be!G80 -> 42.18 | I29: =Be!H80 -> 110 | J29: =Be!I80 -> 00:02:11.700 | K29: =Be!J80 -> 101 | L29: =Be!K80 -> 441 | N29: =Be!A77 -> Bátaszéki Kanizsai Dorottya Ált. Isk.
A30: 28. | B30: =Be!A103 -> Rostás Brendon | C30: =Be!B103 -> 2011 | D30: =Be!C103 -> 9.6 | E30: =Be!D103 -> 135 | F30: =Be!E103 -> 3.94 | G30: =Be!F103 -> 95 | H30: =Be!G103 -> 36.5 | I30: =Be!H103 -> 92 | J30: =Be!I103 -> 00:02:06.100 | K30: =Be!J103 -> 118 | L30: =Be!K103 -> 440 | N30: =Be!A97 -> Nagydorogi Széchényi Sándor Ált. Isk.
A31: 29. | B31: =Be!A89 -> Hoffmann Roland | C31: =Be!B89 -> 2010 | D31: =Be!C89 -> 9.5 | E31: =Be!D89 -> 139 | F31: =Be!E89 -> 3.81 | G31: =Be!F89 -> 89 | H31: =Be!G89 -> 32.31 | I31: =Be!H89 -> 80 | J31: =Be!I89 -> 00:02:02.400 | K31: =Be!J89 -> 130 | L31: =Be!K89 -> 438 | N31: =Be!A87 -> Zombai Általános Iskola
A32: 30. | B32: =Be!A51 -> Vajda Barnabás | C32: =Be!B51 -> 2010 | D32: =Be!C51 -> 9.7 | E32: =Be!D51 -> 131 | F32: =Be!E51 -> 3.66 | G32: =Be!F51 -> 82 | H32: =Be!G51 -> 36.12 | I32: =Be!H51 -> 91 | J32: =Be!I51 -> 00:02:01.200 | K32: =Be!J51 -> 133 | L32: =Be!K51 -> 437 | N32: =Be!A47 -> PTE Gyakorló Ált. Isk. Szekszárd
A33: 31. | B33: =Be!A42 -> Frei Bertalan | C33: =Be!B42 -> 2011 | D33: =Be!C42 -> 9.6 | E33: =Be!D42 -> 135 | F33: =Be!E42 -> 3.87 | G33: =Be!F42 -> 91 | H33: =Be!G42 -> 39.93 | I33: =Be!H42 -> 103 | J33: =Be!I42 -> 00:02:09.900 | K33: =Be!J42 -> 107 | L33: =Be!K42 -> 436 | N33: =Be!A37 -> Szekszárdi Garay János Általános Iskola
A34: 32. | B34: =Be!A104 -> Rostás Richárd Gyula | C34: =Be!B104 -> 2010 | D34: =Be!C104 -> 9.7 | E34: =Be!D104 -> 131 | F34: =Be!E104 -> 3.97 | G34: =Be!F104 -> 96 | H34: =Be!G104 -> 37.86 | I34: =Be!H104 -> 96 | J34: =Be!I104 -> 00:02:09.200 | K34: =Be!J104 -> 109 | L34: =Be!K104 -> 432 | N34: =Be!A97 -> Nagydorogi Széchényi Sándor Ált. Isk.
A35: 33. | B35: =Be!A79 -> Gyulai Brendon Attila | C35: =Be!B79 -> 2011 | D35: =Be!C79 -> 9.5 | E35: =Be!D79 -> 139 | F35: =Be!E79 -> 3.6 | G35: =Be!F79 -> 79 | H35: =Be!G79 -> 34.62 | I35: =Be!H79 -> 87 | J35: =Be!I79 -> 00:02:04.100 | K35: =Be!J79 -> 124 | L35: =Be!K79 -> 429 | N35: =Be!A77 -> Bátaszéki Kanizsai Dorottya Ált. Isk.
A36: 34. | B36: =Be!A102 -> Peterdi Zsombor | C36: =Be!B102 -> 2010 | D36: =Be!C102 -> 9.2 | E36: =Be!D102 -> 152 | F36: =Be!E102 -> 4.19 | G36: =Be!F102 -> 107 | H36: =Be!G102 -> 18.42 | I36: =Be!H102 -> 39 | J36: =Be!I102 -> 00:02:04.800 | K36: =Be!J102 -> 122 | L36: =Be!K102 -> 420 | N36: =Be!A97 -> Nagydorogi Széchényi Sándor Ált. Isk.
A37: 35. | B37: =Be!A44 -> Reizer Erik Tamás | C37: =Be!B44 -> 2010 | D37: =Be!C44 -> 9.3 | E37: =Be!D44 -> 147 | F37: =Be!E44 -> 3.97 | G37: =Be!F44 -> 96 | H37: =Be!G44 -> 32.59 | I37: =Be!H44 -> 80 | J37: =Be!I44 -> 00:02:13.600 | K37: =Be!J44 -> 96 | L37: =Be!K44 -> 419 | N37: =Be!A37 -> Szekszárdi Garay János Általános Iskola
A38: 36. | B38: =Be!A52 -> Végh Hunor | C38: =Be!B52 -> 2011 | D38: =Be!C52 -> 9.7 | E38: =Be!D52 -> 131 | F38: =Be!E52 -> 3.63 | G38: =Be!F52 -> 80 | H38: =Be!G52 -> 33.78 | I38: =Be!H52 -> 84 | J38: =Be!I52 -> 00:02:05.700 | K38: =Be!J52 -> 120 | L38: =Be!K52 -> 415 | N38: =Be!A47 -> PTE Gyakorló Ált. Isk. Szekszárd
A39: 37. | B39: =Be!A92 -> Borbély-Kovács Krisztián | C39: =Be!B92 -> 2010 | D39: =Be!C92 -> 9.6 | E39: =Be!D92 -> 135 | F39: =Be!E92 -> 3.77 | G39: =Be!F92 -> 87 | H39: =Be!G92 -> 33.77 | I39: =Be!H92 -> 84 | J39: =Be!I92 -> 00:02:11.800 | K39: =Be!J92 -> 101 | L39: =Be!K92 -> 407 | N39: =Be!A87 -> Zombai Általános Iskola
A40: 38. | B40: =Be!A82 -> Liebhauser Áron | C40: =Be!B82 -> 2010 | D40: =Be!C82 -> 9.7 | E40: =Be!D82 -> 131 | F40: =Be!E82 -> 3.99 | G40: =Be!F82 -> 97 | H40: =Be!G82 -> 36.02 | I40: =Be!H82 -> 91 | J40: =Be!I82 -> 00:02:19.700 | K40: =Be!J82 -> 81 | L40: =Be!K82 -> 400 | N40: =Be!A77 -> Bátaszéki Kanizsai Dorottya Ált. Isk.
A41: 39. | B41: =Be!A84 -> Vörös Botond | C41: =Be!B84 -> 2011 | D41: =Be!C84 -> 9.9 | E41: =Be!D84 -> 122 | F41: =Be!E84 -> 3.81 | G41: =Be!F84 -> 89 | H41: =Be!G84 -> 34.97 | I41: =Be!H84 -> 88 | J41: =Be!I84 -> 00:02:13 | K41: =Be!J84 -> 98 | L41: =Be!K84 -> 397 | N41: =Be!A77 -> Bátaszéki Kanizsai Dorottya Ált. Isk.
A42: 40. | B42: =Be!A93 -> Trautmann Krisztián | C42: =Be!B93 -> 2011 | D42: =Be!C93 -> 9.3 | E42: =Be!D93 -> 147 | F42: =Be!E93 -> 3.67 | G42: =Be!F93 -> 82 | H42: =Be!G93 -> 32.35 | I42: =Be!H93 -> 80 | J42: =Be!I93 -> 00:02:18.500 | K42: =Be!J93 -> 84 | L42: =Be!K93 -> 393 | N42: =Be!A87 -> Zombai Általános Iskola
A43: 41. | B43: =Be!A100 -> Kocsis Timon | C43: =Be!B100 -> 2010 | D43: =Be!C100 -> 10.2 | E43: =Be!D100 -> 110 | F43: =Be!E100 -> 3.75 | G43: =Be!F100 -> 86 | H43: =Be!G100 -> 30.66 | I43: =Be!H100 -> 75 | J43: =Be!I100 -> 00:02:12.900 | K43: =Be!J100 -> 98 | L43: =Be!K100 -> 369 | N43: =Be!A97 -> Nagydorogi Széchényi Sándor Ált. Isk.
A44: 42. | B44: =Be!A94 -> Csiki Attila | C44: =Be!B94 -> 2010 | D44: =Be!C94 -> 9.9 | E44: =Be!D94 -> 122 | F44: =Be!E94 -> 3.56 | G44: =Be!F94 -> 77 | H44: =Be!G94 -> 30.8 | I44: =Be!H94 -> 75 | J44: =Be!I94 -> 00:02:30.400 | K44: =Be!J94 -> 54 | L44: =Be!K94 -> 328 | N44: =Be!A87 -> Zombai Általános Iskola
A45: 43. | B45: =Be!A6 -> 0 | C45: =Be!B6 -> 0 | D45: =Be!C6 -> 0 | E45: =Be!D6 -> 0 | F45: =Be!E6 -> 0 | G45: =Be!F6 -> 0 | H45: =Be!G6 -> 0 | I45: =Be!H6 -> 0 | J45: =Be!I6 -> 00:00:00 | K45: =Be!J6 -> 0 | L45: =Be!K6 -> 0 | N45: =Be!M6 -> 0
A46: 44. | B46: =Be!A7 -> 0 | C46: =Be!B7 -> 0 | D46: =Be!C7 -> 0 | E46: =Be!D7 -> 0 | F46: =Be!E7 -> 0 | G46: =Be!F7 -> 0 | H46: =Be!G7 -> 0 | I46: =Be!H7 -> 0 | J46: =Be!I7 -> 00:00:00 | K46: =Be!J7 -> 0 | L46: =Be!K7 -> 0 | N46: =Be!M7 -> 0
A47: 45. | B47: =Be!A8 -> 0 | C47: =Be!B8 -> 0 | D47: =Be!C8 -> 0 | E47: =Be!D8 -> 0 | F47: =Be!E8 -> 0 | G47: =Be!F8 -> 0 | H47: =Be!G8 -> 0 | I47: =Be!H8 -> 0 | J47: =Be!I8 -> 00:00:00 | K47: =Be!J8 -> 0 | L47: =Be!K8 -> 0 | N47: =Be!M8 -> 0
A48: 46. | B48: =Be!A9 -> 0 | C48: =Be!B9 -> 0 | D48: =Be!C9 -> 0 | E48: =Be!D9 -> 0 | F48: =Be!E9 -> 0 | G48: =Be!F9 -> 0 | H48: =Be!G9 -> 0 | I48: =Be!H9 -> 0 | J48: =Be!I9 -> 00:00:00 | K48: =Be!J9 -> 0 | L48: =Be!K9 -> 0 | N48: =Be!M9 -> 0
A49: 47. | B49: =Be!A10 -> 0 | C49: =Be!B10 -> 0 | D49: =Be!C10 -> 0 | E49: =Be!D10 -> 0 | F49: =Be!E10 -> 0 | G49: =Be!F10 -> 0 | H49: =Be!G10 -> 0 | I49: =Be!H10 -> 0 | J49: =Be!I10 -> 00:00:00 | K49: =Be!J10 -> 0 | L49: =Be!K10 -> 0 | N49: =Be!M10 -> 0
A50: 48. | B50: =Be!A11 -> 0 | C50: =Be!B11 -> 0 | D50: =Be!C11 -> 0 | E50: =Be!D11 -> 0 | F50: =Be!E11 -> 0 | G50: =Be!F11 -> 0 | H50: =Be!G11 -> 0 | I50: =Be!H11 -> 0 | J50: =Be!I11 -> 00:00:00 | K50: =Be!J11 -> 0 | L50: =Be!K11 -> 0 | N50: =Be!M11 -> 0
A51: 49. | B51: =Be!A12 -> 0 | C51: =Be!B12 -> 0 | D51: =Be!C12 -> 0 | E51: =Be!D12 -> 0 | F51: =Be!E12 -> 0 | G51: =Be!F12 -> 0 | H51: =Be!G12 -> 0 | I51: =Be!H12 -> 0 | J51: =Be!I12 -> 00:00:00 | K51: =Be!J12 -> 0 | L51: =Be!K12 -> 0 | N51: =Be!M12 -> 0
A52: 50. | B52: =Be!A13 -> 0 | C52: =Be!B13 -> 0 | D52: =Be!C13 -> 0 | E52: =Be!D13 -> 0 | F52: =Be!E13 -> 0 | G52: =Be!F13 -> 0 | H52: =Be!G13 -> 0 | I52: =Be!H13 -> 0 | J52: =Be!I13 -> 00:00:00 | K52: =Be!J13 -> 0 | L52: =Be!K13 -> 0 | N52: =Be!M13 -> 0
A53: 51. | B53: =Be!A14 -> 0 | C53: =Be!B14 -> 0 | D53: =Be!C14 -> 0 | E53: =Be!D14 -> 0 | F53: =Be!E14 -> 0 | G53: =Be!F14 -> 0 | H53: =Be!G14 -> 0 | I53: =Be!H14 -> 0 | J53: =Be!I14 -> 00:00:00 | K53: =Be!J14 -> 0 | L53: =Be!K14 -> 0 | N53: =Be!M14 -> 0
A54: 52. | B54: =Be!A15 -> 0 | C54: =Be!B15 -> 0 | D54: =Be!C15 -> 0 | E54: =Be!D15 -> 0 | F54: =Be!E15 -> 0 | G54: =Be!F15 -> 0 | H54: =Be!G15 -> 0 | I54: =Be!H15 -> 0 | J54: =Be!I15 -> 00:00:00 | K54: =Be!J15 -> 0 | L54: =Be!K15 -> 0 | N54: =Be!M15 -> 0
A55: 53. | B55: =Be!A16 -> 0 | C55: =Be!B16 -> 0 | D55: =Be!C16 -> 0 | E55: =Be!D16 -> 0 | F55: =Be!E16 -> 0 | G55: =Be!F16 -> 0 | H55: =Be!G16 -> 0 | I55: =Be!H16 -> 0 | J55: =Be!I16 -> 00:00:00 | K55: =Be!J16 -> 0 | L55: =Be!K16 -> 0 | N55: =Be!M16 -> 0
A56: 54. | B56: =Be!A17 -> 0 | C56: =Be!B17 -> 0 | D56: =Be!C17 -> 0 | E56: =Be!D17 -> 0 | F56: =Be!E17 -> 0 | G56: =Be!F17 -> 0 | H56: =Be!G17 -> 0 | I56: =Be!H17 -> 0 | J56: =Be!I17 -> 00:00:00 | K56: =Be!J17 -> 0 | L56: =Be!K17 -> 0 | N56: =Be!M17 -> 0
A57: 55. | B57: =Be!A18 -> 0 | C57: =Be!B18 -> 0 | D57: =Be!C18 -> 0 | E57: =Be!D18 -> 0 | F57: =Be!E18 -> 0 | G57: =Be!F18 -> 0 | H57: =Be!G18 -> 0 | I57: =Be!H18 -> 0 | J57: =Be!I18 -> 00:00:00 | K57: =Be!J18 -> 0 | L57: =Be!K18 -> 0 | N57: =Be!M18 -> 0
A58: 56. | B58: =Be!A19 -> 0 | C58: =Be!B19 -> 0 | D58: =Be!C19 -> 0 | E58: =Be!D19 -> 0 | F58: =Be!E19 -> 0 | G58: =Be!F19 -> 0 | H58: =Be!G19 -> 0 | I58: =Be!H19 -> 0 | J58: =Be!I19 -> 00:00:00 | K58: =Be!J19 -> 0 | L58: =Be!K19 -> 0 | N58: =Be!M19 -> 0
A59: 57. | B59: =Be!A20 -> 0 | C59: =Be!B20 -> 0 | D59: =Be!C20 -> 0 | E59: =Be!D20 -> 0 | F59: =Be!E20 -> 0 | G59: =Be!F20 -> 0 | H59: =Be!G20 -> 0 | I59: =Be!H20 -> 0 | J59: =Be!I20 -> 00:00:00 | K59: =Be!J20 -> 0 | L59: =Be!K20 -> 0 | N59: =Be!M20 -> 0
A60: 58. | B60: =Be!A21 -> 0 | C60: =Be!B21 -> 0 | D60: =Be!C21 -> 0 | E60: =Be!D21 -> 0 | F60: =Be!E21 -> 0 | G60: =Be!F21 -> 0 | H60: =Be!G21 -> 0 | I60: =Be!H21 -> 0 | J60: =Be!I21 -> 00:00:00 | K60: =Be!J21 -> 0 | L60: =Be!K21 -> 0 | N60: =Be!M21 -> 0
A61: 59. | B61: =Be!A22 -> 0 | C61: =Be!B22 -> 0 | D61: =Be!C22 -> 0 | E61: =Be!D22 -> 0 | F61: =Be!E22 -> 0 | G61: =Be!F22 -> 0 | H61: =Be!G22 -> 0 | I61: =Be!H22 -> 0 | J61: =Be!I22 -> 00:00:00 | K61: =Be!J22 -> 0 | L61: =Be!K22 -> 0 | N61: =Be!M22 -> 0
A62: 60. | B62: =Be!A23 -> 0 | C62: =Be!B23 -> 0 | D62: =Be!C23 -> 0 | E62: =Be!D23 -> 0 | F62: =Be!E23 -> 0 | G62: =Be!F23 -> 0 | H62: =Be!G23 -> 0 | I62: =Be!H23 -> 0 | J62: =Be!I23 -> 00:00:00 | K62: =Be!J23 -> 0 | L62: =Be!K23 -> 0 | N62: =Be!M23 -> 0
A63: 61. | B63: =Be!A24 -> 0 | C63: =Be!B24 -> 0 | D63: =Be!C24 -> 0 | E63: =Be!D24 -> 0 | F63: =Be!E24 -> 0 | G63: =Be!F24 -> 0 | H63: =Be!G24 -> 0 | I63: =Be!H24 -> 0 | J63: =Be!I24 -> 00:00:00 | K63: =Be!J24 -> 0 | L63: =Be!K24 -> 0 | N63: =Be!M24 -> 0
A64: 62. | B64: =Be!A25 -> 0 | C64: =Be!B25 -> 0 | D64: =Be!C25 -> 0 | E64: =Be!D25 -> 0 | F64: =Be!E25 -> 0 | G64: =Be!F25 -> 0 | H64: =Be!G25 -> 0 | I64: =Be!H25 -> 0 | J64: =Be!I25 -> 00:00:00 | K64: =Be!J25 -> 0 | L64: =Be!K25 -> 0 | N64: =Be!M25 -> 0
A65: 63. | B65: =Be!A29 -> Farkas Botond | C65: =Be!B29 -> 2011 | D65: =Be!C29 -> 0 | E65: =Be!D29 -> 0 | F65: =Be!E29 -> 0 | G65: =Be!F29 -> 0 | H65: =Be!G29 -> 0 | I65: =Be!H29 -> 0 | J65: =Be!I29 -> 00:00:00 | K65: =Be!J29 -> 0 | L65: =Be!K29 -> 0 | N65: =Be!A27 -> Bonyhádi Általános Iskola
A66: 64. | B66: =Be!A54 -> Fülöp György József | C66: =Be!B54 -> 2010 | D66: =Be!C54 -> 0 | E66: =Be!D54 -> 0 | F66: =Be!E54 -> 0 | G66: =Be!F54 -> 0 | H66: =Be!G54 -> 0 | I66: =Be!H54 -> 0 | J66: =Be!I54 -> 00:00:00 | K66: =Be!J54 -> 0 | L66: =Be!K54 -> 0 | N66: =Be!A47 -> PTE Gyakorló Ált. Isk. Szekszárd
A67: 65. | B67: =Be!A69 -> Kuurstra Mike Norbert | C67: =Be!B69 -> 0 | D67: =Be!C69 -> 0 | E67: =Be!D69 -> 0 | F67: =Be!E69 -> 0 | G67: =Be!F69 -> 0 | H67: =Be!G69 -> 0 | I67: =Be!H69 -> 0 | J67: =Be!I69 -> 00:00:00 | K67: =Be!J69 -> 0 | L67: =Be!K69 -> 0 | N67: =Be!A67 -> Dombóvári József Attila Ált. Isk.
A68: 66. | B68: =Be!A70 -> Szabotin Soma | C68: =Be!B70 -> 0 | D68: =Be!C70 -> 0 | E68: =Be!D70 -> 0 | F68: =Be!E70 -> 0 | G68: =Be!F70 -> 0 | H68: =Be!G70 -> 0 | I68: =Be!H70 -> 0 | J68: =Be!I70 -> 00:00:00 | K68: =Be!J70 -> 0 | L68: =Be!K70 -> 0 | N68: =Be!A67 -> Dombóvári József Attila Ált. Isk.
A69: 67. | B69: =Be!A71 -> Szabó Albert Zétény | C69: =Be!B71 -> 0 | D69: =Be!C71 -> 0 | E69: =Be!D71 -> 0 | F69: =Be!E71 -> 0 | G69: =Be!F71 -> 0 | H69: =Be!G71 -> 0 | I69: =Be!H71 -> 0 | J69: =Be!I71 -> 00:00:00 | K69: =Be!J71 -> 0 | L69: =Be!K71 -> 0 | N69: =Be!A67 -> Dombóvári József Attila Ált. Isk.
A70: 68. | B70: =Be!A72 -> Katyi Nimród | C70: =Be!B72 -> 0 | D70: =Be!C72 -> 0 | E70: =Be!D72 -> 0 | F70: =Be!E72 -> 0 | G70: =Be!F72 -> 0 | H70: =Be!G72 -> 0 | I70: =Be!H72 -> 0 | J70: =Be!I72 -> 00:00:00 | K70: =Be!J72 -> 0 | L70: =Be!K72 -> 0 | N70: =Be!A67 -> Dombóvári József Attila Ált. Isk.
A71: 69. | B71: =Be!A73 -> Várai Bence | C71: =Be!B73 -> 0 | D71: =Be!C73 -> 0 | E71: =Be!D73 -> 0 | F71: =Be!E73 -> 0 | G71: =Be!F73 -> 0 | H71: =Be!G73 -> 0 | I71: =Be!H73 -> 0 | J71: =Be!I73 -> 00:00:00 | K71: =Be!J73 -> 0 | L71: =Be!K73 -> 0 | N71: =Be!A67 -> Dombóvári József Attila Ált. Isk.
A72: 70. | B72: =Be!A74 -> Csere Dávid | C72: =Be!B74 -> 0 | D72: =Be!C74 -> 0 | E72: =Be!D74 -> 0 | F72: =Be!E74 -> 0 | G72: =Be!F74 -> 0 | H72: =Be!G74 -> 0 | I72: =Be!H74 -> 0 | J72: =Be!I74 -> 00:00:00 | K72: =Be!J74 -> 0 | L72: =Be!K74 -> 0 | N72: =Be!A67 -> Dombóvári József Attila Ált. Isk.
A73: 71. | B73: =Be!A109 -> 0 | C73: =Be!B109 -> 0 | D73: =Be!C109 -> 0 | E73: =Be!D109 -> 0 | F73: =Be!E109 -> 0 | G73: =Be!F109 -> 0 | H73: =Be!G109 -> 0 | I73: =Be!H109 -> 0 | J73: =Be!I109 -> 00:00:00 | K73: =Be!J109 -> 0 | L73: =Be!K109 -> 0 | N73: =Be!A107 -> 0
A74: 72. | B74: =Be!A110 -> 0 | C74: =Be!B110 -> 0 | D74: =Be!C110 -> 0 | E74: =Be!D110 -> 0 | F74: =Be!E110 -> 0 | G74: =Be!F110 -> 0 | H74: =Be!G110 -> 0 | I74: =Be!H110 -> 0 | J74: =Be!I110 -> 00:00:00 | K74: =Be!J110 -> 0 | L74: =Be!K110 -> 0 | N74: =Be!A107 -> 0
A75: 73. | B75: =Be!A111 -> 0 | C75: =Be!B111 -> 0 | D75: =Be!C111 -> 0 | E75: =Be!D111 -> 0 | F75: =Be!E111 -> 0 | G75: =Be!F111 -> 0 | H75: =Be!G111 -> 0 | I75: =Be!H111 -> 0 | J75: =Be!I111 -> 00:00:00 | K75: =Be!J111 -> 0 | L75: =Be!K111 -> 0 | N75: =Be!A107 -> 0
A76: 74. | B76: =Be!A112 -> 0 | C76: =Be!B112 -> 0 | D76: =Be!C112 -> 0 | E76: =Be!D112 -> 0 | F76: =Be!E112 -> 0 | G76: =Be!F112 -> 0 | H76: =Be!G112 -> 0 | I76: =Be!H112 -> 0 | J76: =Be!I112 -> 00:00:00 | K76: =Be!J112 -> 0 | L76: =Be!K112 -> 0 | N76: =Be!A107 -> 0
A77: 75. | B77: =Be!A113 -> 0 | C77: =Be!B113 -> 0 | D77: =Be!C113 -> 0 | E77: =Be!D113 -> 0 | F77: =Be!E113 -> 0 | G77: =Be!F113 -> 0 | H77: =Be!G113 -> 0 | I77: =Be!H113 -> 0 | J77: =Be!I113 -> 00:00:00 | K77: =Be!J113 -> 0 | L77: =Be!K113 -> 0 | N77: =Be!A107 -> 0
A78: 76. | B78: =Be!A114 -> 0 | C78: =Be!B114 -> 0 | D78: =Be!C114 -> 0 | E78: =Be!D114 -> 0 | F78: =Be!E114 -> 0 | G78: =Be!F114 -> 0 | H78: =Be!G114 -> 0 | I78: =Be!H114 -> 0 | J78: =Be!I114 -> 00:00:00 | K78: =Be!J114 -> 0 | L78: =Be!K114 -> 0 | N78: =Be!A107 -> 0
A79: 77. | B79: =Be!A119 -> 0 | C79: =Be!B119 -> 0 | D79: =Be!C119 -> 0 | E79: =Be!D119 -> 0 | F79: =Be!E119 -> 0 | G79: =Be!F119 -> 0 | H79: =Be!G119 -> 0 | I79: =Be!H119 -> 0 | J79: =Be!I119 -> 00:00:00 | K79: =Be!J119 -> 0 | L79: =Be!K119 -> 0 | N79: =Be!A117 -> 0
A80: 78. | B80: =Be!A120 -> 0 | C80: =Be!B120 -> 0 | D80: =Be!C120 -> 0 | E80: =Be!D120 -> 0 | F80: =Be!E120 -> 0 | G80: =Be!F120 -> 0 | H80: =Be!G120 -> 0 | I80: =Be!H120 -> 0 | J80: =Be!I120 -> 00:00:00 | K80: =Be!J120 -> 0 | L80: =Be!K120 -> 0 | N80: =Be!A117 -> 0
A81: 79. | B81: =Be!A121 -> 0 | C81: =Be!B121 -> 0 | D81: =Be!C121 -> 0 | E81: =Be!D121 -> 0 | F81: =Be!E121 -> 0 | G81: =Be!F121 -> 0 | H81: =Be!G121 -> 0 | I81: =Be!H121 -> 0 | J81: =Be!I121 -> 00:00:00 | K81: =Be!J121 -> 0 | L81: =Be!K121 -> 0 | N81: =Be!A117 -> 0
A82: 80. | B82: =Be!A122 -> 0 | C82: =Be!B122 -> 0 | D82: =Be!C122 -> 0 | E82: =Be!D122 -> 0 | F82: =Be!E122 -> 0 | G82: =Be!F122 -> 0 | H82: =Be!G122 -> 0 | I82: =Be!H122 -> 0 | J82: =Be!I122 -> 00:00:00 | K82: =Be!J122 -> 0 | L82: =Be!K122 -> 0 | N82: =Be!A117 -> 0
A83: 81. | B83: =Be!A123 -> 0 | C83: =Be!B123 -> 0 | D83: =Be!C123 -> 0 | E83: =Be!D123 -> 0 | F83: =Be!E123 -> 0 | G83: =Be!F123 -> 0 | H83: =Be!G123 -> 0 | I83: =Be!H123 -> 0 | J83: =Be!I123 -> 00:00:00 | K83: =Be!J123 -> 0 | L83: =Be!K123 -> 0 | N83: =Be!A117 -> 0
A84: 82. | B84: =Be!A124 -> 0 | C84: =Be!B124 -> 0 | D84: =Be!C124 -> 0 | E84: =Be!D124 -> 0 | F84: =Be!E124 -> 0 | G84: =Be!F124 -> 0 | H84: =Be!G124 -> 0 | I84: =Be!H124 -> 0 | J84: =Be!I124 -> 00:00:00 | K84: =Be!J124 -> 0 | L84: =Be!K124 -> 0 | N84: =Be!A117 -> 0
A85: 83. | B85: =Be!A129 -> 0 | C85: =Be!B129 -> 0 | D85: =Be!C129 -> 0 | E85: =Be!D129 -> 0 | F85: =Be!E129 -> 0 | G85: =Be!F129 -> 0 | H85: =Be!G129 -> 0 | I85: =Be!H129 -> 0 | J85: =Be!I129 -> 00:00:00 | K85: =Be!J129 -> 0 | L85: =Be!K129 -> 0 | N85: =Be!A127 -> 0
A86: 84. | B86: =Be!A130 -> 0 | C86: =Be!B130 -> 0 | D86: =Be!C130 -> 0 | E86: =Be!D130 -> 0 | F86: =Be!E130 -> 0 | G86: =Be!F130 -> 0 | H86: =Be!G130 -> 0 | I86: =Be!H130 -> 0 | J86: =Be!I130 -> 00:00:00 | K86: =Be!J130 -> 0 | L86: =Be!K130 -> 0 | N86: =Be!A127 -> 0
A87: 85. | B87: =Be!A131 -> 0 | C87: =Be!B131 -> 0 | D87: =Be!C131 -> 0 | E87: =Be!D131 -> 0 | F87: =Be!E131 -> 0 | G87: =Be!F131 -> 0 | H87: =Be!G131 -> 0 | I87: =Be!H131 -> 0 | J87: =Be!I131 -> 00:00:00 | K87: =Be!J131 -> 0 | L87: =Be!K131 -> 0 | N87: =Be!A127 -> 0
A88: 86. | B88: =Be!A132 -> 0 | C88: =Be!B132 -> 0 | D88: =Be!C132 -> 0 | E88: =Be!D132 -> 0 | F88: =Be!E132 -> 0 | G88: =Be!F132 -> 0 | H88: =Be!G132 -> 0 | I88: =Be!H132 -> 0 | J88: =Be!I132 -> 00:00:00 | K88: =Be!J132 -> 0 | L88: =Be!K132 -> 0 | N88: =Be!A127 -> 0
A89: 87. | B89: =Be!A133 -> 0 | C89: =Be!B133 -> 0 | D89: =Be!C133 -> 0 | E89: =Be!D133 -> 0 | F89: =Be!E133 -> 0 | G89: =Be!F133 -> 0 | H89: =Be!G133 -> 0 | I89: =Be!H133 -> 0 | J89: =Be!I133 -> 00:00:00 | K89: =Be!J133 -> 0 | L89: =Be!K133 -> 0 | N89: =Be!A127 -> 0
A90: 88. | B90: =Be!A134 -> 0 | C90: =Be!B134 -> 0 | D90: =Be!C134 -> 0 | E90: =Be!D134 -> 0 | F90: =Be!E134 -> 0 | G90: =Be!F134 -> 0 | H90: =Be!G134 -> 0 | I90: =Be!H134 -> 0 | J90: =Be!I134 -> 00:00:00 | K90: =Be!J134 -> 0 | L90: =Be!K134 -> 0 | N90: =Be!A127 -> 0
A91: 89. | B91: =Be!A139 -> 0 | C91: =Be!B139 -> 0 | D91: =Be!C139 -> 0 | E91: =Be!D139 -> 0 | F91: =Be!E139 -> 0 | G91: =Be!F139 -> 0 | H91: =Be!G139 -> 0 | I91: =Be!H139 -> 0 | J91: =Be!I139 -> 00:00:00 | K91: =Be!J139 -> 0 | L91: =Be!K139 -> 0 | N91: =Be!A137 -> 0
A92: 90. | B92: =Be!A140 -> 0 | C92: =Be!B140 -> 0 | D92: =Be!C140 -> 0 | E92: =Be!D140 -> 0 | F92: =Be!E140 -> 0 | G92: =Be!F140 -> 0 | H92: =Be!G140 -> 0 | I92: =Be!H140 -> 0 | J92: =Be!I140 -> 00:00:00 | K92: =Be!J140 -> 0 | L92: =Be!K140 -> 0 | N92: =Be!A137 -> 0
A93: 91. | B93: =Be!A141 -> 0 | C93: =Be!B141 -> 0 | D93: =Be!C141 -> 0 | E93: =Be!D141 -> 0 | F93: =Be!E141 -> 0 | G93: =Be!F141 -> 0 | H93: =Be!G141 -> 0 | I93: =Be!H141 -> 0 | J93: =Be!I141 -> 00:00:00 | K93: =Be!J141 -> 0 | L93: =Be!K141 -> 0 | N93: =Be!A137 -> 0
A94: 92. | B94: =Be!A142 -> 0 | C94: =Be!B142 -> 0 | D94: =Be!C142 -> 0 | E94: =Be!D142 -> 0 | F94: =Be!E142 -> 0 | G94: =Be!F142 -> 0 | H94: =Be!G142 -> 0 | I94: =Be!H142 -> 0 | J94: =Be!I142 -> 00:00:00 | K94: =Be!J142 -> 0 | L94: =Be!K142 -> 0 | N94: =Be!A137 -> 0
A95: 93. | B95: =Be!A143 -> 0 | C95: =Be!B143 -> 0 | D95: =Be!C143 -> 0 | E95: =Be!D143 -> 0 | F95: =Be!E143 -> 0 | G95: =Be!F143 -> 0 | H95: =Be!G143 -> 0 | I95: =Be!H143 -> 0 | J95: =Be!I143 -> 00:00:00 | K95: =Be!J143 -> 0 | L95: =Be!K143 -> 0 | N95: =Be!A137 -> 0
A96: 94. | B96: =Be!A144 -> 0 | C96: =Be!B144 -> 0 | D96: =Be!C144 -> 0 | E96: =Be!D144 -> 0 | F96: =Be!E144 -> 0 | G96: =Be!F144 -> 0 | H96: =Be!G144 -> 0 | I96: =Be!H144 -> 0 | J96: =Be!I144 -> 00:00:00 | K96: =Be!J144 -> 0 | L96: =Be!K144 -> 0 | N96: =Be!A137 -> 0
A97: 95. | B97: =Be!A149 -> 0 | C97: =Be!B149 -> 0 | D97: =Be!C149 -> 0 | E97: =Be!D149 -> 0 | F97: =Be!E149 -> 0 | G97: =Be!F149 -> 0 | H97: =Be!G149 -> 0 | I97: =Be!H149 -> 0 | J97: =Be!I149 -> 00:00:00 | K97: =Be!J149 -> 0 | L97: =Be!K149 -> 0 | N97: =Be!A147 -> 0
A98: 96. | B98: =Be!A150 -> 0 | C98: =Be!B150 -> 0 | D98: =Be!C150 -> 0 | E98: =Be!D150 -> 0 | F98: =Be!E150 -> 0 | G98: =Be!F150 -> 0 | H98: =Be!G150 -> 0 | I98: =Be!H150 -> 0 | J98: =Be!I150 -> 00:00:00 | K98: =Be!J150 -> 0 | L98: =Be!K150 -> 0 | N98: =Be!A147 -> 0
A99: 97. | B99: =Be!A151 -> 0 | C99: =Be!B151 -> 0 | D99: =Be!C151 -> 0 | E99: =Be!D151 -> 0 | F99: =Be!E151 -> 0 | G99: =Be!F151 -> 0 | H99: =Be!G151 -> 0 | I99: =Be!H151 -> 0 | J99: =Be!I151 -> 00:00:00 | K99: =Be!J151 -> 0 | L99: =Be!K151 -> 0 | N99: =Be!A147 -> 0
A100: 98. | B100: =Be!A152 -> 0 | C100: =Be!B152 -> 0 | D100: =Be!C152 -> 0 | E100: =Be!D152 -> 0 | F100: =Be!E152 -> 0 | G100: =Be!F152 -> 0 | H100: =Be!G152 -> 0 | I100: =Be!H152 -> 0 | J100: =Be!I152 -> 00:00:00 | K100: =Be!J152 -> 0 | L100: =Be!K152 -> 0 | N100: =Be!A147 -> 0
A101: 99. | B101: =Be!A153 -> 0 | C101: =Be!B153 -> 0 | D101: =Be!C153 -> 0 | E101: =Be!D153 -> 0 | F101: =Be!E153 -> 0 | G101: =Be!F153 -> 0 | H101: =Be!G153 -> 0 | I101: =Be!H153 -> 0 | J101: =Be!I153 -> 00:00:00 | K101: =Be!J153 -> 0 | L101: =Be!K153 -> 0 | N101: =Be!A147 -> 0
A102: 100. | B102: =Be!A154 -> 0 | C102: =Be!B154 -> 0 | D102: =Be!C154 -> 0 | E102: =Be!D154 -> 0 | F102: =Be!E154 -> 0 | G102: =Be!F154 -> 0 | H102: =Be!G154 -> 0 | I102: =Be!H154 -> 0 | J102: =Be!I154 -> 00:00:00 | K102: =Be!J154 -> 0 | L102: =Be!K154 -> 0 | N102: =Be!A147 -> 0
A103: 101. | B103: =Be!A159 -> 0 | C103: =Be!B159 -> 0 | D103: =Be!C159 -> 0 | E103: =Be!D159 -> 0 | F103: =Be!E159 -> 0 | G103: =Be!F159 -> 0 | H103: =Be!G159 -> 0 | I103: =Be!H159 -> 0 | J103: =Be!I159 -> 00:00:00 | K103: =Be!J159 -> 0 | L103: =Be!K159 -> 0 | N103: =Be!A157 -> 0
A104: 102. | B104: =Be!A160 -> 0 | C104: =Be!B160 -> 0 | D104: =Be!C160 -> 0 | E104: =Be!D160 -> 0 | F104: =Be!E160 -> 0 | G104: =Be!F160 -> 0 | H104: =Be!G160 -> 0 | I104: =Be!H160 -> 0 | J104: =Be!I160 -> 00:00:00 | K104: =Be!J160 -> 0 | L104: =Be!K160 -> 0 | N104: =Be!A157 -> 0
A105: 103. | B105: =Be!A161 -> 0 | C105: =Be!B161 -> 0 | D105: =Be!C161 -> 0 | E105: =Be!D161 -> 0 | F105: =Be!E161 -> 0 | G105: =Be!F161 -> 0 | H105: =Be!G161 -> 0 | I105: =Be!H161 -> 0 | J105: =Be!I161 -> 00:00:00 | K105: =Be!J161 -> 0 | L105: =Be!K161 -> 0 | N105: =Be!A157 -> 0
A106: 104. | B106: =Be!A162 -> 0 | C106: =Be!B162 -> 0 | D106: =Be!C162 -> 0 | E106: =Be!D162 -> 0 | F106: =Be!E162 -> 0 | G106: =Be!F162 -> 0 | H106: =Be!G162 -> 0 | I106: =Be!H162 -> 0 | J106: =Be!I162 -> 00:00:00 | K106: =Be!J162 -> 0 | L106: =Be!K162 -> 0 | N106: =Be!A157 -> 0
A107: 105. | B107: =Be!A163 -> 0 | C107: =Be!B163 -> 0 | D107: =Be!C163 -> 0 | E107: =Be!D163 -> 0 | F107: =Be!E163 -> 0 | G107: =Be!F163 -> 0 | H107: =Be!G163 -> 0 | I107: =Be!H163 -> 0 | J107: =Be!I163 -> 00:00:00 | K107: =Be!J163 -> 0 | L107: =Be!K163 -> 0 | N107: =Be!A157 -> 0
A108: 106. | B108: =Be!A164 -> 0 | C108: =Be!B164 -> 0 | D108: =Be!C164 -> 0 | E108: =Be!D164 -> 0 | F108: =Be!E164 -> 0 | G108: =Be!F164 -> 0 | H108: =Be!G164 -> 0 | I108: =Be!H164 -> 0 | J108: =Be!I164 -> 00:00:00 | K108: =Be!J164 -> 0 | L108: =Be!K164 -> 0 | N108: =Be!A157 -> 0
A109: 107. | B109: =Be!A169 -> 0 | C109: =Be!B169 -> 0 | D109: =Be!C169 -> 0 | E109: =Be!D169 -> 0 | F109: =Be!E169 -> 0 | G109: =Be!F169 -> 0 | H109: =Be!G169 -> 0 | I109: =Be!H169 -> 0 | J109: =Be!I169 -> 00:00:00 | K109: =Be!J169 -> 0 | L109: =Be!K169 -> 0 | N109: =Be!A167 -> 0
A110: 108. | B110: =Be!A170 -> 0 | C110: =Be!B170 -> 0 | D110: =Be!C170 -> 0 | E110: =Be!D170 -> 0 | F110: =Be!E170 -> 0 | G110: =Be!F170 -> 0 | H110: =Be!G170 -> 0 | I110: =Be!H170 -> 0 | J110: =Be!I170 -> 00:00:00 | K110: =Be!J170 -> 0 | L110: =Be!K170 -> 0 | N110: =Be!A167 -> 0
A111: 109. | B111: =Be!A171 -> 0 | C111: =Be!B171 -> 0 | D111: =Be!C171 -> 0 | E111: =Be!D171 -> 0 | F111: =Be!E171 -> 0 | G111: =Be!F171 -> 0 | H111: =Be!G171 -> 0 | I111: =Be!H171 -> 0 | J111: =Be!I171 -> 00:00:00 | K111: =Be!J171 -> 0 | L111: =Be!K171 -> 0 | N111: =Be!A167 -> 0
A112: 110. | B112: =Be!A172 -> 0 | C112: =Be!B172 -> 0 | D112: =Be!C172 -> 0 | E112: =Be!D172 -> 0 | F112: =Be!E172 -> 0 | G112: =Be!F172 -> 0 | H112: =Be!G172 -> 0 | I112: =Be!H172 -> 0 | J112: =Be!I172 -> 00:00:00 | K112: =Be!J172 -> 0 | L112: =Be!K172 -> 0 | N112: =Be!A167 -> 0
A113: 111. | B113: =Be!A173 -> 0 | C113: =Be!B173 -> 0 | D113: =Be!C173 -> 0 | E113: =Be!D173 -> 0 | F113: =Be!E173 -> 0 | G113: =Be!F173 -> 0 | H113: =Be!G173 -> 0 | I113: =Be!H173 -> 0 | J113: =Be!I173 -> 00:00:00 | K113: =Be!J173 -> 0 | L113: =Be!K173 -> 0 | N113: =Be!A167 -> 0
A114: 112. | B114: =Be!A174 -> 0 | C114: =Be!B174 -> 0 | D114: =Be!C174 -> 0 | E114: =Be!D174 -> 0 | F114: =Be!E174 -> 0 | G114: =Be!F174 -> 0 | H114: =Be!G174 -> 0 | I114: =Be!H174 -> 0 | J114: =Be!I174 -> 00:00:00 | K114: =Be!J174 -> 0 | L114: =Be!K174 -> 0 | N114: =Be!A167 -> 0
A115: 113. | B115: =Be!A179 -> 0 | C115: =Be!B179 -> 0 | D115: =Be!C179 -> 0 | E115: =Be!D179 -> 0 | F115: =Be!E179 -> 0 | G115: =Be!F179 -> 0 | H115: =Be!G179 -> 0 | I115: =Be!H179 -> 0 | J115: =Be!I179 -> 00:00:00 | K115: =Be!J179 -> 0 | L115: =Be!K179 -> 0 | N115: =Be!A177 -> 0
A116: 114. | B116: =Be!A180 -> 0 | C116: =Be!B180 -> 0 | D116: =Be!C180 -> 0 | E116: =Be!D180 -> 0 | F116: =Be!E180 -> 0 | G116: =Be!F180 -> 0 | H116: =Be!G180 -> 0 | I116: =Be!H180 -> 0 | J116: =Be!I180 -> 00:00:00 | K116: =Be!J180 -> 0 | L116: =Be!K180 -> 0 | N116: =Be!A177 -> 0
A117: 115. | B117: =Be!A181 -> 0 | C117: =Be!B181 -> 0 | D117: =Be!C181 -> 0 | E117: =Be!D181 -> 0 | F117: =Be!E181 -> 0 | G117: =Be!F181 -> 0 | H117: =Be!G181 -> 0 | I117: =Be!H181 -> 0 | J117: =Be!I181 -> 00:00:00 | K117: =Be!J181 -> 0 | L117: =Be!K181 -> 0 | N117: =Be!A177 -> 0
A118: 116. | B118: =Be!A182 -> 0 | C118: =Be!B182 -> 0 | D118: =Be!C182 -> 0 | E118: =Be!D182 -> 0 | F118: =Be!E182 -> 0 | G118: =Be!F182 -> 0 | H118: =Be!G182 -> 0 | I118: =Be!H182 -> 0 | J118: =Be!I182 -> 00:00:00 | K118: =Be!J182 -> 0 | L118: =Be!K182 -> 0 | N118: =Be!A177 -> 0
A119: 117. | B119: =Be!A183 -> 0 | C119: =Be!B183 -> 0 | D119: =Be!C183 -> 0 | E119: =Be!D183 -> 0 | F119: =Be!E183 -> 0 | G119: =Be!F183 -> 0 | H119: =Be!G183 -> 0 | I119: =Be!H183 -> 0 | J119: =Be!I183 -> 00:00:00 | K119: =Be!J183 -> 0 | L119: =Be!K183 -> 0 | N119: =Be!A177 -> 0
A120: 118. | B120: =Be!A184 -> 0 | C120: =Be!B184 -> 0 | D120: =Be!C184 -> 0 | E120: =Be!D184 -> 0 | F120: =Be!E184 -> 0 | G120: =Be!F184 -> 0 | H120: =Be!G184 -> 0 | I120: =Be!H184 -> 0 | J120: =Be!I184 -> 00:00:00 | K120: =Be!J184 -> 0 | L120: =Be!K184 -> 0 | N120: =Be!A177 -> 0
A121: 119. | B121: =Be!A189 -> 0 | C121: =Be!B189 -> 0 | D121: =Be!C189 -> 0 | E121: =Be!D189 -> 0 | F121: =Be!E189 -> 0 | G121: =Be!F189 -> 0 | H121: =Be!G189 -> 0 | I121: =Be!H189 -> 0 | J121: =Be!I189 -> 00:00:00 | K121: =Be!J189 -> 0 | L121: =Be!K189 -> 0 | N121: =Be!A187 -> 0
A122: 120. | B122: =Be!A190 -> 0 | C122: =Be!B190 -> 0 | D122: =Be!C190 -> 0 | E122: =Be!D190 -> 0 | F122: =Be!E190 -> 0 | G122: =Be!F190 -> 0 | H122: =Be!G190 -> 0 | I122: =Be!H190 -> 0 | J122: =Be!I190 -> 00:00:00 | K122: =Be!J190 -> 0 | L122: =Be!K190 -> 0 | N122: =Be!A187 -> 0
A123: 121. | B123: =Be!A191 -> 0 | C123: =Be!B191 -> 0 | D123: =Be!C191 -> 0 | E123: =Be!D191 -> 0 | F123: =Be!E191 -> 0 | G123: =Be!F191 -> 0 | H123: =Be!G191 -> 0 | I123: =Be!H191 -> 0 | J123: =Be!I191 -> 00:00:00 | K123: =Be!J191 -> 0 | L123: =Be!K191 -> 0 | N123: =Be!A187 -> 0
A124: 122. | B124: =Be!A192 -> 0 | C124: =Be!B192 -> 0 | D124: =Be!C192 -> 0 | E124: =Be!D192 -> 0 | F124: =Be!E192 -> 0 | G124: =Be!F192 -> 0 | H124: =Be!G192 -> 0 | I124: =Be!H192 -> 0 | J124: =Be!I192 -> 00:00:00 | K124: =Be!J192 -> 0 | L124: =Be!K192 -> 0 | N124: =Be!A187 -> 0
A125: 123. | B125: =Be!A193 -> 0 | C125: =Be!B193 -> 0 | D125: =Be!C193 -> 0 | E125: =Be!D193 -> 0 | F125: =Be!E193 -> 0 | G125: =Be!F193 -> 0 | H125: =Be!G193 -> 0 | I125: =Be!H193 -> 0 | J125: =Be!I193 -> 00:00:00 | K125: =Be!J193 -> 0 | L125: =Be!K193 -> 0 | N125: =Be!A187 -> 0
A126: 124. | B126: =Be!A194 -> 0 | C126: =Be!B194 -> 0 | D126: =Be!C194 -> 0 | E126: =Be!D194 -> 0 | F126: =Be!E194 -> 0 | G126: =Be!F194 -> 0 | H126: =Be!G194 -> 0 | I126: =Be!H194 -> 0 | J126: =Be!I194 -> 00:00:00 | K126: =Be!J194 -> 0 | L126: =Be!K194 -> 0 | N126: =Be!A187 -> 0
A127: 125. | B127: =Be!A199 -> 0 | C127: =Be!B199 -> 0 | D127: =Be!C199 -> 0 | E127: =Be!D199 -> 0 | F127: =Be!E199 -> 0 | G127: =Be!F199 -> 0 | H127: =Be!G199 -> 0 | I127: =Be!H199 -> 0 | J127: =Be!I199 -> 00:00:00 | K127: =Be!J199 -> 0 | L127: =Be!K199 -> 0 | N127: =Be!A197 -> 0
A128: 126. | B128: =Be!A200 -> 0 | C128: =Be!B200 -> 0 | D128: =Be!C200 -> 0 | E128: =Be!D200 -> 0 | F128: =Be!E200 -> 0 | G128: =Be!F200 -> 0 | H128: =Be!G200 -> 0 | I128: =Be!H200 -> 0 | J128: =Be!I200 -> 00:00:00 | K128: =Be!J200 -> 0 | L128: =Be!K200 -> 0 | N128: =Be!A197 -> 0
A129: 127. | B129: =Be!A201 -> 0 | C129: =Be!B201 -> 0 | D129: =Be!C201 -> 0 | E129: =Be!D201 -> 0 | F129: =Be!E201 -> 0 | G129: =Be!F201 -> 0 | H129: =Be!G201 -> 0 | I129: =Be!H201 -> 0 | J129: =Be!I201 -> 00:00:00 | K129: =Be!J201 -> 0 | L129: =Be!K201 -> 0 | N129: =Be!A197 -> 0
A130: 128. | B130: =Be!A202 -> 0 | C130: =Be!B202 -> 0 | D130: =Be!C202 -> 0 | E130: =Be!D202 -> 0 | F130: =Be!E202 -> 0 | G130: =Be!F202 -> 0 | H130: =Be!G202 -> 0 | I130: =Be!H202 -> 0 | J130: =Be!I202 -> 00:00:00 | K130: =Be!J202 -> 0 | L130: =Be!K202 -> 0 | N130: =Be!A197 -> 0
A131: 129. | B131: =Be!A203 -> 0 | C131: =Be!B203 -> 0 | D131: =Be!C203 -> 0 | E131: =Be!D203 -> 0 | F131: =Be!E203 -> 0 | G131: =Be!F203 -> 0 | H131: =Be!G203 -> 0 | I131: =Be!H203 -> 0 | J131: =Be!I203 -> 00:00:00 | K131: =Be!J203 -> 0 | L131: =Be!K203 -> 0 | N131: =Be!A197 -> 0
A132: 130. | B132: =Be!A204 -> 0 | C132: =Be!B204 -> 0 | D132: =Be!C204 -> 0 | E132: =Be!D204 -> 0 | F132: =Be!E204 -> 0 | G132: =Be!F204 -> 0 | H132: =Be!G204 -> 0 | I132: =Be!H204 -> 0 | J132: =Be!I204 -> 00:00:00 | K132: =Be!J204 -> 0 | L132: =Be!K204 -> 0 | N132: =Be!A197 -> 0
A133: 131. | B133: =Be!A209 -> 0 | C133: =Be!B209 -> 0 | D133: =Be!C209 -> 0 | E133: =Be!D209 -> 0 | F133: =Be!E209 -> 0 | G133: =Be!F209 -> 0 | H133: =Be!G209 -> 0 | I133: =Be!H209 -> 0 | J133: =Be!I209 -> 00:00:00 | K133: =Be!J209 -> 0 | L133: =Be!K209 -> 0 | N133: =Be!A207 -> 0
A134: 132. | B134: =Be!A210 -> 0 | C134: =Be!B210 -> 0 | D134: =Be!C210 -> 0 | E134: =Be!D210 -> 0 | F134: =Be!E210 -> 0 | G134: =Be!F210 -> 0 | H134: =Be!G210 -> 0 | I134: =Be!H210 -> 0 | J134: =Be!I210 -> 00:00:00 | K134: =Be!J210 -> 0 | L134: =Be!K210 -> 0 | N134: =Be!A207 -> 0
A135: 133. | B135: =Be!A211 -> 0 | C135: =Be!B211 -> 0 | D135: =Be!C211 -> 0 | E135: =Be!D211 -> 0 | F135: =Be!E211 -> 0 | G135: =Be!F211 -> 0 | H135: =Be!G211 -> 0 | I135: =Be!H211 -> 0 | J135: =Be!I211 -> 00:00:00 | K135: =Be!J211 -> 0 | L135: =Be!K211 -> 0 | N135: =Be!A207 -> 0
A136: 134. | B136: =Be!A212 -> 0 | C136: =Be!B212 -> 0 | D136: =Be!C212 -> 0 | E136: =Be!D212 -> 0 | F136: =Be!E212 -> 0 | G136: =Be!F212 -> 0 | H136: =Be!G212 -> 0 | I136: =Be!H212 -> 0 | J136: =Be!I212 -> 00:00:00 | K136: =Be!J212 -> 0 | L136: =Be!K212 -> 0 | N136: =Be!A207 -> 0
A137: 135. | B137: =Be!A213 -> 0 | C137: =Be!B213 -> 0 | D137: =Be!C213 -> 0 | E137: =Be!D213 -> 0 | F137: =Be!E213 -> 0 | G137: =Be!F213 -> 0 | H137: =Be!G213 -> 0 | I137: =Be!H213 -> 0 | J137: =Be!I213 -> 00:00:00 | K137: =Be!J213 -> 0 | L137: =Be!K213 -> 0 | N137: =Be!A207 -> 0
A138: 136. | B138: =Be!A214 -> 0 | C138: =Be!B214 -> 0 | D138: =Be!C214 -> 0 | E138: =Be!D214 -> 0 | F138: =Be!E214 -> 0 | G138: =Be!F214 -> 0 | H138: =Be!G214 -> 0 | I138: =Be!H214 -> 0 | J138: =Be!I214 -> 00:00:00 | K138: =Be!J214 -> 0 | L138: =Be!K214 -> 0 | N138: =Be!A207 -> 0
A139: 137. | B139: =Be!A219 -> 0 | C139: =Be!B219 -> 0 | D139: =Be!C219 -> 0 | E139: =Be!D219 -> 0 | F139: =Be!E219 -> 0 | G139: =Be!F219 -> 0 | H139: =Be!G219 -> 0 | I139: =Be!H219 -> 0 | J139: =Be!I219 -> 00:00:00 | K139: =Be!J219 -> 0 | L139: =Be!K219 -> 0 | N139: =Be!A217 -> 0
A140: 138. | B140: =Be!A220 -> 0 | C140: =Be!B220 -> 0 | D140: =Be!C220 -> 0 | E140: =Be!D220 -> 0 | F140: =Be!E220 -> 0 | G140: =Be!F220 -> 0 | H140: =Be!G220 -> 0 | I140: =Be!H220 -> 0 | J140: =Be!I220 -> 00:00:00 | K140: =Be!J220 -> 0 | L140: =Be!K220 -> 0 | N140: =Be!A217 -> 0
A141: 139. | B141: =Be!A221 -> 0 | C141: =Be!B221 -> 0 | D141: =Be!C221 -> 0 | E141: =Be!D221 -> 0 | F141: =Be!E221 -> 0 | G141: =Be!F221 -> 0 | H141: =Be!G221 -> 0 | I141: =Be!H221 -> 0 | J141: =Be!I221 -> 00:00:00 | K141: =Be!J221 -> 0 | L141: =Be!K221 -> 0 | N141: =Be!A217 -> 0
A142: 140. | B142: =Be!A222 -> 0 | C142: =Be!B222 -> 0 | D142: =Be!C222 -> 0 | E142: =Be!D222 -> 0 | F142: =Be!E222 -> 0 | G142: =Be!F222 -> 0 | H142: =Be!G222 -> 0 | I142: =Be!H222 -> 0 | J142: =Be!I222 -> 00:00:00 | K142: =Be!J222 -> 0 | L142: =Be!K222 -> 0 | N142: =Be!A217 -> 0
A143: 141. | B143: =Be!A223 -> 0 | C143: =Be!B223 -> 0 | D143: =Be!C223 -> 0 | E143: =Be!D223 -> 0 | F143: =Be!E223 -> 0 | G143: =Be!F223 -> 0 | H143: =Be!G223 -> 0 | I143: =Be!H223 -> 0 | J143: =Be!I223 -> 00:00:00 | K143: =Be!J223 -> 0 | L143: =Be!K223 -> 0 | N143: =Be!A217 -> 0
A144: 142. | B144: =Be!A224 -> 0 | C144: =Be!B224 -> 0 | D144: =Be!C224 -> 0 | E144: =Be!D224 -> 0 | F144: =Be!E224 -> 0 | G144: =Be!F224 -> 0 | H144: =Be!G224 -> 0 | I144: =Be!H224 -> 0 | J144: =Be!I224 -> 00:00:00 | K144: =Be!J224 -> 0 | L144: =Be!K224 -> 0 | N144: =Be!A217 -> 0
A145: 143. | B145: =Be!A229 -> 0 | C145: =Be!B229 -> 0 | D145: =Be!C229 -> 0 | E145: =Be!D229 -> 0 | F145: =Be!E229 -> 0 | G145: =Be!F229 -> 0 | H145: =Be!G229 -> 0 | I145: =Be!H229 -> 0 | J145: =Be!I229 -> 00:00:00 | K145: =Be!J229 -> 0 | L145: =Be!K229 -> 0 | N145: =Be!A227 -> 0
A146: 144. | B146: =Be!A230 -> 0 | C146: =Be!B230 -> 0 | D146: =Be!C230 -> 0 | E146: =Be!D230 -> 0 | F146: =Be!E230 -> 0 | G146: =Be!F230 -> 0 | H146: =Be!G230 -> 0 | I146: =Be!H230 -> 0 | J146: =Be!I230 -> 00:00:00 | K146: =Be!J230 -> 0 | L146: =Be!K230 -> 0 | N146: =Be!A227 -> 0
A147: 145. | B147: =Be!A231 -> 0 | C147: =Be!B231 -> 0 | D147: =Be!C231 -> 0 | E147: =Be!D231 -> 0 | F147: =Be!E231 -> 0 | G147: =Be!F231 -> 0 | H147: =Be!G231 -> 0 | I147: =Be!H231 -> 0 | J147: =Be!I231 -> 00:00:00 | K147: =Be!J231 -> 0 | L147: =Be!K231 -> 0 | N147: =Be!A227 -> 0
A148: 146. | B148: =Be!A232 -> 0 | C148: =Be!B232 -> 0 | D148: =Be!C232 -> 0 | E148: =Be!D232 -> 0 | F148: =Be!E232 -> 0 | G148: =Be!F232 -> 0 | H148: =Be!G232 -> 0 | I148: =Be!H232 -> 0 | J148: =Be!I232 -> 00:00:00 | K148: =Be!J232 -> 0 | L148: =Be!K232 -> 0 | N148: =Be!A227 -> 0
A149: 147. | B149: =Be!A233 -> 0 | C149: =Be!B233 -> 0 | D149: =Be!C233 -> 0 | E149: =Be!D233 -> 0 | F149: =Be!E233 -> 0 | G149: =Be!F233 -> 0 | H149: =Be!G233 -> 0 | I149: =Be!H233 -> 0 | J149: =Be!I233 -> 00:00:00 | K149: =Be!J233 -> 0 | L149: =Be!K233 -> 0 | N149: =Be!A227 -> 0
A150: 148. | B150: =Be!A234 -> 0 | C150: =Be!B234 -> 0 | D150: =Be!C234 -> 0 | E150: =Be!D234 -> 0 | F150: =Be!E234 -> 0 | G150: =Be!F234 -> 0 | H150: =Be!G234 -> 0 | I150: =Be!H234 -> 0 | J150: =Be!I234 -> 00:00:00 | K150: =Be!J234 -> 0 | L150: =Be!K234 -> 0 | N150: =Be!A227 -> 0
A151: 149. | B151: =Be!A239 -> 0 | C151: =Be!B239 -> 0 | D151: =Be!C239 -> 0 | E151: =Be!D239 -> 0 | F151: =Be!E239 -> 0 | G151: =Be!F239 -> 0 | H151: =Be!G239 -> 0 | I151: =Be!H239 -> 0 | J151: =Be!I239 -> 00:00:00 | K151: =Be!J239 -> 0 | L151: =Be!K239 -> 0 | N151: =Be!A237 -> 0
A152: 150. | B152: =Be!A240 -> 0 | C152: =Be!B240 -> 0 | D152: =Be!C240 -> 0 | E152: =Be!D240 -> 0 | F152: =Be!E240 -> 0 | G152: =Be!F240 -> 0 | H152: =Be!G240 -> 0 | I152: =Be!H240 -> 0 | J152: =Be!I240 -> 00:00:00 | K152: =Be!J240 -> 0 | L152: =Be!K240 -> 0 | N152: =Be!A237 -> 0
A153: 151. | B153: =Be!A241 -> 0 | C153: =Be!B241 -> 0 | D153: =Be!C241 -> 0 | E153: =Be!D241 -> 0 | F153: =Be!E241 -> 0 | G153: =Be!F241 -> 0 | H153: =Be!G241 -> 0 | I153: =Be!H241 -> 0 | J153: =Be!I241 -> 00:00:00 | K153: =Be!J241 -> 0 | L153: =Be!K241 -> 0 | N153: =Be!A237 -> 0
A154: 152. | B154: =Be!A242 -> 0 | C154: =Be!B242 -> 0 | D154: =Be!C242 -> 0 | E154: =Be!D242 -> 0 | F154: =Be!E242 -> 0 | G154: =Be!F242 -> 0 | H154: =Be!G242 -> 0 | I154: =Be!H242 -> 0 | J154: =Be!I242 -> 00:00:00 | K154: =Be!J242 -> 0 | L154: =Be!K242 -> 0 | N154: =Be!A237 -> 0
A155: 153. | B155: =Be!A243 -> 0 | C155: =Be!B243 -> 0 | D155: =Be!C243 -> 0 | E155: =Be!D243 -> 0 | F155: =Be!E243 -> 0 | G155: =Be!F243 -> 0 | H155: =Be!G243 -> 0 | I155: =Be!H243 -> 0 | J155: =Be!I243 -> 00:00:00 | K155: =Be!J243 -> 0 | L155: =Be!K243 -> 0 | N155: =Be!A237 -> 0
A156: 154. | B156: =Be!A244 -> 0 | C156: =Be!B244 -> 0 | D156: =Be!C244 -> 0 | E156: =Be!D244 -> 0 | F156: =Be!E244 -> 0 | G156: =Be!F244 -> 0 | H156: =Be!G244 -> 0 | I156: =Be!H244 -> 0 | J156: =Be!I244 -> 00:00:00 | K156: =Be!J244 -> 0 | L156: =Be!K244 -> 0 | N156: =Be!A237 -> 0

Sheet Csapat
A1: III. korcsoport FIÚ CSAPAT verseny (Rendezés Ctrl + h )
B2: Iskola | C2: Pont
A3: 1. | B3: =Be!$A$27&CHAR(10)&Be!$A$29&" "&Be!$K$29&" "&Be!$A$30&" "&Be!$K$30&CHAR(10)&Be!$A$31&" "&Be!$K$31&" "&Be!$A$32&" "&Be!$K$32&CHAR(10)&Be!$A$33&" "&Be!$K$33&" "&Be!$A$34&" "&Be!$K$34 -> Bonyhádi Általános Iskola Farkas Botond 0 János Olivér 488 Magyar Péter József 565 Markóczi Donát 605 Szőts Dávid 635 Tusa Zétény 457 | C3: =Be!$M$29 -> 2750
A4: 2. | B4: =Be!$A$37&CHAR(10)&Be!$A$39&" "&Be!$K$39&" "&Be!$A$40&" "&Be!$K$40&CHAR(10)&Be!$A$41&" "&Be!$K$41&" "&Be!$A$42&" "&Be!$K$42&CHAR(10)&Be!$A$43&" "&Be!$K$43&" "&Be!$A$44&" "&Be!$K$44 -> Szekszárdi Garay János Általános Iskola Gyenes Kristóf 536 Gyenes Szilárd 502 Nyisztor Gergely 543 Frei Bertalan 436 Rend Hunor 443 Reizer Erik Tamás 419 | C4: =Be!$M$39 -> 2460
A5: 3. | B5: =Be!$A$57&CHAR(10)&Be!$A$59&" "&Be!$K$59&" "&Be!$A$60&" "&Be!$K$60&CHAR(10)&Be!$A$61&" "&Be!$K$61&" "&Be!$A$62&" "&Be!$K$62&CHAR(10)&Be!$A$63&" "&Be!$K$63&" "&Be!$A$64&" "&Be!$K$64 -> Szt. Orsolya Bencés Ált. Isk. Dombóvár Kutyik-Szabó Károly 498 Lehőcz Zétény 445 Pataki Gergő 511 Roósz Balázs 503 Tárnok Marcell 475 Benkő Szabolcs 460 | C5: =Be!$M$59 -> 2447
A6: 4. | B6: =Be!$A$97&CHAR(10)&Be!$A$99&" "&Be!$K$99&" "&Be!$A$100&" "&Be!$K$100&CHAR(10)&Be!$A$101&" "&Be!$K$101&" "&Be!$A$102&" "&Be!$K$102&CHAR(10)&Be!$A$103&" "&Be!$K$103&" "&Be!$A$104&" "&Be!$K$104 -> Nagydorogi Széchényi Sándor Ált. Isk. Dobosi Donát 486 Kocsis Timon 369 Lendvai Noel 520 Peterdi Zsombor 420 Rostás Brendon 440 Rostás Richárd Gyula 432 | C6: =Be!$M$99 -> 2298
A7: 5. | B7: =Be!$A$87&CHAR(10)&Be!$A$89&" "&Be!$K$89&" "&Be!$A$90&" "&Be!$K$90&CHAR(10)&Be!$A$91&" "&Be!$K$91&" "&Be!$A$92&" "&Be!$K$92&CHAR(10)&Be!$A$93&" "&Be!$K$93&" "&Be!$A$94&" "&Be!$K$94 -> Zombai Általános Iskola Hoffmann Roland 438 Homoki Dominik 603 Márk Levente 450 Borbély-Kovács Krisztián 407 Trautmann Krisztián 393 Csiki Attila 328 | C7: =Be!$M$89 -> 2291
A8: 6. | B8: =Be!$A$47&CHAR(10)&Be!$A$49&" "&Be!$K$49&" "&Be!$A$50&" "&Be!$K$50&CHAR(10)&Be!$A$51&" "&Be!$K$51&" "&Be!$A$52&" "&Be!$K$52&CHAR(10)&Be!$A$53&" "&Be!$K$53&" "&Be!$A$54&" "&Be!$K$54 -> PTE Gyakorló Ált. Isk. Szekszárd Joósz Ákos 444 Vörös Arlen Botond 488 Vajda Barnabás 437 Végh Hunor 415 Bakó Mihály 443 Fülöp György József 0 | C8: =Be!$M$49 -> 2227
A9: 7. | B9: =Be!$A$77&CHAR(10)&Be!$A$79&" "&Be!$K$79&" "&Be!$A$80&" "&Be!$K$80&CHAR(10)&Be!$A$81&" "&Be!$K$81&" "&Be!$A$82&" "&Be!$K$82&CHAR(10)&Be!$A$83&" "&Be!$K$83&" "&Be!$A$84&" "&Be!$K$84 -> Bátaszéki Kanizsai Dorottya Ált. Isk. Gyulai Brendon Attila 429 Indrich Krisztián 441 Fekete Ágoston Imre 448 Liebhauser Áron 400 Szabó Patrik 459 Vörös Botond 397 | C9: =Be!$M$79 -> 2177
A10: 8. | B10: =Be!$A$67&CHAR(10)&Be!$A$69&" "&Be!$K$69&" "&Be!$A$70&" "&Be!$K$70&CHAR(10)&Be!$A$71&" "&Be!$K$71&" "&Be!$A$72&" "&Be!$K$72&CHAR(10)&Be!$A$73&" "&Be!$K$73&" "&Be!$A$74&" "&Be!$K$74 -> Dombóvári József Attila Ált. Isk. Kuurstra Mike Norbert 0 Szabotin Soma 0 Szabó Albert Zétény 0 Katyi Nimród 0 Várai Bence 0 Csere Dávid 0 | C10: =Be!$M$69 -> 0
A11: 9. | B11: =Be!$A$107&CHAR(10)&Be!$A$109&" "&Be!$K$109&" "&Be!$A$110&" "&Be!$K$110&CHAR(10)&Be!$A$111&" "&Be!$K$111&" "&Be!$A$112&" "&Be!$K$112&CHAR(10)&Be!$A$113&" "&Be!$K$113&" "&Be!$A$114&" "&Be!$K$114 -> 0 0 0 0 0 0 | C11: =Be!$M$109 -> 0
A12: 10. | B12: =Be!$A$117&CHAR(10)&Be!$A$119&" "&Be!$K$119&" "&Be!$A$120&" "&Be!$K$120&CHAR(10)&Be!$A$121&" "&Be!$K$121&" "&Be!$A$122&" "&Be!$K$122&CHAR(10)&Be!$A$123&" "&Be!$K$123&" "&Be!$A$124&" "&Be!$K$124 -> 0 0 0 0 0 0 | C12: =Be!$M$119 -> 0
A13: 11. | B13: =Be!$A$127&CHAR(10)&Be!$A$129&" "&Be!$K$129&" "&Be!$A$130&" "&Be!$K$130&CHAR(10)&Be!$A$131&" "&Be!$K$131&" "&Be!$A$132&" "&Be!$K$132&CHAR(10)&Be!$A$133&" "&Be!$K$133&" "&Be!$A$134&" "&Be!$K$134 -> 0 0 0 0 0 0 | C13: =Be!$M$129 -> 0
A14: 12. | B14: =Be!$A$137&CHAR(10)&Be!$A$139&" "&Be!$K$139&" "&Be!$A$140&" "&Be!$K$140&CHAR(10)&Be!$A$141&" "&Be!$K$141&" "&Be!$A$142&" "&Be!$K$142&CHAR(10)&Be!$A$143&" "&Be!$K$143&" "&Be!$A$144&" "&Be!$K$144 -> 0 0 0 0 0 0 | C14: =Be!$M$139 -> 0
A15: 13. | B15: =Be!$A$147&CHAR(10)&Be!$A$149&" "&Be!$K$149&" "&Be!$A$150&" "&Be!$K$150&CHAR(10)&Be!$A$151&" "&Be!$K$151&" "&Be!$A$152&" "&Be!$K$152&CHAR(10)&Be!$A$153&" "&Be!$K$153&" "&Be!$A$154&" "&Be!$K$154 -> 0 0 0 0 0 0 | C15: =Be!$M$149 -> 0
A16: 14. | B16: =Be!$A$157&CHAR(10)&Be!$A$159&" "&Be!$K$159&" "&Be!$A$160&" "&Be!$K$160&CHAR(10)&Be!$A$161&" "&Be!$K$161&" "&Be!$A$162&" "&Be!$K$162&CHAR(10)&Be!$A$163&" "&Be!$K$163&" "&Be!$A$164&" "&Be!$K$164 -> 0 0 0 0 0 0 | C16: =Be!$M$159 -> 0
A17: 15. | B17: =Be!$A$167&CHAR(10)&Be!$A$169&" "&Be!$K$169&" "&Be!$A$170&" "&Be!$K$170&CHAR(10)&Be!$A$171&" "&Be!$K$171&" "&Be!$A$172&" "&Be!$K$172&CHAR(10)&Be!$A$173&" "&Be!$K$173&" "&Be!$A$174&" "&Be!$K$174 -> 0 0 0 0 0 0 | C17: =Be!$M$169 -> 0
A18: 16. | B18: =Be!$A$177&CHAR(10)&Be!$A$179&" "&Be!$K$179&" "&Be!$A$180&" "&Be!$K$180&CHAR(10)&Be!$A$181&" "&Be!$K$181&" "&Be!$A$182&" "&Be!$K$182&CHAR(10)&Be!$A$183&" "&Be!$K$183&" "&Be!$A$184&" "&Be!$K$184 -> 0 0 0 0 0 0 | C18: =Be!$M$179 -> 0
A19: 17. | B19: =Be!$A$187&CHAR(10)&Be!$A$189&" "&Be!$K$189&" "&Be!$A$190&" "&Be!$K$190&CHAR(10)&Be!$A$191&" "&Be!$K$191&" "&Be!$A$192&" "&Be!$K$192&CHAR(10)&Be!$A$193&" "&Be!$K$193&" "&Be!$A$194&" "&Be!$K$194 -> 0 0 0 0 0 0 | C19: =Be!$M$189 -> 0
A20: 18. | B20: =Be!$A$197&CHAR(10)&Be!$A$199&" "&Be!$K$199&" "&Be!$A$200&" "&Be!$K$200&CHAR(10)&Be!$A$201&" "&Be!$K$201&" "&Be!$A$202&" "&Be!$K$202&CHAR(10)&Be!$A$203&" "&Be!$K$203&" "&Be!$A$204&" "&Be!$K$204 -> 0 0 0 0 0 0 | C20: =Be!$M$199 -> 0
A21: 19. | B21: =Be!$A$207&CHAR(10)&Be!$A$209&" "&Be!$K$209&" "&Be!$A$210&" "&Be!$K$210&CHAR(10)&Be!$A$211&" "&Be!$K$211&" "&Be!$A$212&" "&Be!$K$212&CHAR(10)&Be!$A$213&" "&Be!$K$213&" "&Be!$A$214&" "&Be!$K$214 -> 0 0 0 0 0 0 | C21: =Be!$M$209 -> 0
A22: 20. | B22: =Be!$A$217&CHAR(10)&Be!$A$219&" "&Be!$K$219&" "&Be!$A$220&" "&Be!$K$220&CHAR(10)&Be!$A$221&" "&Be!$K$221&" "&Be!$A$222&" "&Be!$K$222&CHAR(10)&Be!$A$223&" "&Be!$K$223&" "&Be!$A$224&" "&Be!$K$224 -> 0 0 0 0 0 0 | C22: =Be!$M$219 -> 0
A23: 21. | B23: =Be!$A$227&CHAR(10)&Be!$A$229&" "&Be!$K$229&" "&Be!$A$230&" "&Be!$K$230&CHAR(10)&Be!$A$231&" "&Be!$K$231&" "&Be!$A$232&" "&Be!$K$232&CHAR(10)&Be!$A$233&" "&Be!$K$233&" "&Be!$A$234&" "&Be!$K$234 -> 0 0 0 0 0 0 | C23: =Be!$M$229 -> 0
A24: 22. | B24: =Be!$A$237&CHAR(10)&Be!$A$239&" "&Be!$K$239&" "&Be!$A$240&" "&Be!$K$240&CHAR(10)&Be!$A$241&" "&Be!$K$241&" "&Be!$A$242&" "&Be!$K$242&CHAR(10)&Be!$A$243&" "&Be!$K$243&" "&Be!$A$244&" "&Be!$K$244 -> 0 0 0 0 0 0 | C24: =Be!$M$239 -> 0
